Cogmind - Beta 10.2 @@@ ROGUE MODE // 2021.01.22 @ 19:08:31 Player: CrossedViper Result: Destroyed by B-74 Champion with Powered Hammer Performance ------------- Evolutions (9) 4500 Regions Visited (32) 6400 Robots Destroyed (595) 2975 Value Destroyed (34267) 34267 Prototype IDs (98) 1960 Alien Tech Used (15) 3000 Bonus (36883) 36883 TOTAL SCORE: 89985 Bonus ------- Triggered High Security 500 Triggered Max Security 2000 High Alert Combat Kills 20183 Follower Combat Kills 4483 Aligned with FarCom 300 Destroyed Z-Imprinter 1000 Met Warlord at Base 500 MAIN.C Attacked Warlord 500 Used Core Reset Matrix 3000 Scanned by Researcher 500 Pursued by Intercept 500 Met Sigix 2000 Activated Exoskeleton 3000 Friendly Fire -1583 Cogmind --------- Core Integrity 0/1850 Matter 290/300 Energy 100/100 System Corruption 0% Temperature Cool (0) Movement Core (450) Ox8 Location -1/Command Parts ------- > --- POWER (3) -------- (None) > --- PROPULSION (6) --- (None) > --- UTILITY (13) ----- Large Storage Unit > --- WEAPON (3) ------- Core Cannon > --- INVENTORY (12) --- (None) Peak State ------------ > --- POWER ------------ Light Particle Reactor Compact Particle Reactor Reinforced Quantum Reactor > --- PROPULSION ------- Improved Heavy Siege Treads Centrium Heavy Treads Experimental Biometal Heavy Treads > --- UTILITY ---------- Experimental Cooling System Experimental Cooling System Large Storage Unit High-capacity Storage Unit Experimental Targeting Computer Experimental Target Analyzer Quantum Capacitor Centrium Medium Armor Plating Heavy Regenerative Plating Heavy Regenerative Plating > --- WEAPON ----------- Helical Railgun Helical Railgun Tesla Bomb Launcher > --- INVENTORY -------- Advanced Heavy Treads Compact Matter Pod Core Reset Matrix Sigix Quantum Sheargun Sigix Quantum Sheargun Sigix Quantum Sheargun Core Cannon Helical Railgun Multirail Neutron Missile Launcher Neutron Missile Launcher [Rating: 206] Favorites ----------- Power Improved Quantum Reactor Engine Ion Engine Power Core Micro Fission Core Reactor Improved Quantum Reactor Propulsion Combat Gravmag System Treads Light Treads Leg Enhanced Biometal Leg Wheel Wheel Hover Unit Combat Gravmag System Flight Unit Xenon Bombardment Thruster Utility Large Storage Unit Device Experimental Cooling System Storage Large Storage Unit Processor Experimental Target Analyzer Hackware Ghost Barrier Protection Heavy Regenerative Plating Artifact Phase Redirector Weapon Spear Energy Gun Sigix Quantum Sheargun Energy Cannon Long-range Phase Cannon Ballistic Gun Flak Gun Ballistic Cannon Graviton Cannon Launcher Grenade Launcher Special Weapon Molecular Deconstructor Impact Weapon Core Stripper Slashing Weapon Chainsword Piercing Weapon Spear Build | -11 -10 -10 -10 -9 -8 -7 -7 -7 -6 -6 -6 -6 -6 -5 -5 -5 -5 -5 -5 -5 -4 -4 -4 -4 -4 -3 -3 -2 -2 -2 -1 -1 ------- Run | Scr Mat Min Exi Min Mat Fac Was Fac Fac Low Low Zio Dee Pro Fac Was Fac Upp Upp War Pro Fac Was Fac Arm Res Tes Res Qua Sec Acc Com Slots Evolved 18 | . . . . . 4 2 . . 2 . . . . . 2 . . . . . . 2 . . . 2 . 2 . . 2 . Power 2 | . . . . . . . . . 1 . . . . . . . . . . . . . . . . 1 . . . . . . Propulsion 4 | . . . . . 1 1 . . . . . . . . 1 . . . . . . . . . . . . . . . 1 . Utility 11 | . . . . . 3 1 . . . . . . . . 1 . . . . . . 2 . . . 1 . 2 . . 1 . Weapon 1 | . . . . . . . . . 1 . . . . . . . . . . . . . . . . . . . . . . . Parts Attached 573 | . 5 3 5 4 33 12 1 62 17 23 1 2 35 15 22 9 23 8 1 12 5 14 1 3 6 18 12 17 67 59 51 27 Power 54 | . 1 1 . . 1 1 . 5 3 3 . . 2 1 . 1 3 . . 1 . . . . . 6 2 4 6 9 3 1 Engine 8 | . 1 1 . . 1 . . 2 3 . . . . . . . . . . . . . . . . . . . . . . . Core 12 | . . . . . . 1 . 3 . 3 . . . . . . . . . . . . . . . 2 . 2 1 . . . Reactor 34 | . . . . . . . . . . . . . 2 1 . 1 3 . . 1 . . . . . 4 2 2 5 9 3 1 Propulsion 94 | . 2 1 1 . 10 4 . 8 4 . . . 6 2 2 . 5 . . 3 . . . . 2 1 3 4 18 6 8 4 Treads 27 | . 1 1 . . 7 1 . . . . . . . . . . . . . . . . . . . . . . 7 6 4 . Leg 9 | . . . . . . . . . . . . . . . . . . . . . . . . . . . . . 4 . 1 4 Wheel 4 | . 1 . . . . . . . . . . . . . . . . . . . . . . . . . . . . . 3 . Hover 53 | . . . 1 . 3 3 . 7 4 . . . 6 2 2 . 5 . . 3 . . . . 2 1 3 4 7 . . . Flight 1 | . . . . . . . . 1 . . . . . . . . . . . . . . . . . . . . . . . . Utility 254 | . . 1 2 1 12 2 1 24 6 14 1 1 13 7 19 6 11 7 1 5 2 8 1 1 3 10 5 7 24 31 20 8 Device 108 | . . 1 . 1 4 . . 7 1 8 . 1 6 4 6 3 5 3 1 1 1 2 1 . . 3 1 4 14 22 6 2 Storage 27 | . . . 2 . 2 . . . . . . . 4 1 2 . . . . . 1 2 . . . 1 1 1 5 2 2 1 Processor 23 | . . . . . 1 . . 2 2 1 . . 1 . 1 . 3 . . 1 . . . . . 3 . 1 2 1 3 1 Hackware 9 | . . . . . . . . 1 . . . . . . 2 . . . . . . 1 . . 1 2 2 . . . . . Protection 86 | . . . . . 5 2 1 14 3 5 1 . 2 2 8 3 3 4 . 3 . 3 . 1 2 1 1 1 2 6 9 4 Artifact 1 | . . . . . . . . . . . . . . . . . . . . . . . . . . . . . 1 . . . Weapon 171 | . 2 . 2 3 10 5 . 25 4 6 . 1 14 5 1 2 4 1 . 3 3 6 . 2 1 1 2 2 19 13 20 14 Energy Gun 27 | . . . . . . 1 . . . . . . 2 3 . . . . . 3 2 2 . . . . . . 2 . 7 5 Energy Cannon 24 | . . . 1 . . . . 3 . . . . . . . . 1 . . . . . . 1 . 1 . . 7 6 2 2 Ballistic Gun 43 | . . . 1 1 8 1 . 10 1 3 . . 4 . . 1 2 . . . . . . . . . . . . . 7 4 Ballistic Cannon 6 | . . . . . . . . . . . . . . . . . . . . . . . . . . . . . 1 1 1 3 Launcher 28 | . 2 . . 2 2 2 . 6 1 . . . . . . . . . . . 1 . . . 1 . . 1 1 6 3 . Special Weapon 5 | . . . . . . . . . . . . . . 1 1 1 1 . . . . 1 . . . . . . . . . . Impact Weapon 6 | . . . . . . . . . . . . . . . . . . . . . . . . . . . . . 6 . . . Slashing Weapon 12 | . . . . . . 1 . 1 1 1 . 1 3 . . . . 1 . . . 2 . 1 . . . . . . . . Piercing Weapon 20 | . . . . . . . . 5 1 2 . . 5 1 . . . . . . . 1 . . . . 2 1 2 . . . Special Melee Weapon . | . . . . . . . . . . . . . . . . . . . . . . . . . . . . . . . . . Unidentified Prototypes 75 | . . 1 . 1 2 2 . 1 . . . . 6 1 . 1 2 . . 6 1 1 . 1 . 2 2 . 20 14 10 1 Parts Lost 166 | . . . 3 . 9 3 . 9 3 1 . . 10 10 14 . . . . . . 3 . . 3 7 1 12 9 8 26 35 Power 22 | . . . . . . . . 2 2 1 . . 2 1 2 . . . . . . . . . . 2 . 2 1 1 2 4 Propulsion 39 | . . . 2 . 3 2 . 1 . . . . 2 2 3 . . . . . . . . . 1 3 . 4 2 2 5 7 Utility 71 | . . . . . 3 . . 5 . . . . 3 4 8 . . . . . . 3 . . 1 1 1 5 6 3 11 17 Weapon 34 | . . . 1 . 3 1 . 1 1 . . . 3 3 1 . . . . . . . . . 1 1 . 1 . 2 8 7 Highest Loss Streak 26 | . . . 3 . 3 3 . 4 2 1 . . 10 9 10 . . . . . . 2 . . 3 6 1 3 2 2 13 26 Average Slot Usage (%) 82 | . 85 85 92 71 87 82 84 80 91 94 100 100 94 89 84 59 84 100 100 97 93 91 89 93 85 78 87 87 75 68 77 75 Engine 2 | . 14 14 14 14 8 4 . 1 11 4 . . . . . . . . . . . . . . . . . . . . . . Core 2 | . . . . . . 2 7 5 . 3 13 13 5 . . . . . . . . . . . . 1 2 4 3 . . . Reactor 5 | . . . . . . . . . . . . . 6 12 8 4 8 11 11 8 5 5 5 5 5 3 5 4 6 11 11 9 Treads 5 | . 14 21 26 . 19 6 . . . . . . . . . . . . . . . . . . . . . . 5 9 8 5 Hover 12 | . . . . 14 . 9 15 15 22 26 26 26 25 23 25 11 23 29 29 29 29 26 26 26 26 21 21 20 5 . . . Device 10 | . . . . . 11 7 7 2 2 7 13 14 16 27 24 3 8 10 17 17 16 13 14 15 10 8 8 9 11 13 12 11 Storage 11 | . 14 14 22 14 15 15 15 15 13 13 13 13 13 8 7 5 5 5 5 5 5 10 10 10 10 9 4 12 12 8 10 11 Processor 8 | . . . . . 6 7 7 8 12 6 6 4 3 . 1 5 7 11 11 11 11 10 10 10 5 5 14 13 17 8 9 11 Hackware 1 | . . . . . . . . 3 . . . . . . 1 5 4 . . . . 4 5 5 9 11 14 8 1 . . . Protection 6 | . . . . . 6 12 15 10 9 10 6 6 3 . 2 12 10 11 5 4 5 5 6 5 8 7 2 . . 7 9 7 Energy Gun 1 | . 10 . . . . 1 7 . . . . . 1 6 . . . . . 4 9 4 . . . . . . . . 3 5 Energy Cannon 1 | . . . 1 . . . . . . . . . . . . . . 5 5 3 . . . 4 . . . . 1 6 1 . Ballistic Gun 3 | . 10 . 1 19 16 11 . 7 2 . . . 7 . . 1 6 6 5 2 . . . . . . . . . . 2 3 Launcher 1 | . 7 28 25 8 . 1 . . 1 . . . . . . . . . . . . . . . . . . . . 1 1 . Slashing Weapon 1 | . . . . . . . 7 . . 5 6 11 4 . . . . 4 5 5 5 4 5 5 3 . . . . . . . Piercing Weapon 3 | . . . . . . . . 5 12 12 13 7 5 5 4 . . . . . . 4 5 5 5 4 9 10 3 . . . Naked Turns . | . . . . . . . . . . . . . . . . . . . . . . . . . . . . . . . . . Heaviest Build 193 | 13 15 16 50 26 53 55 54 55 58 66 61 64 69 66 53 53 76 79 76 84 98 112 105 117 108 117 66 94 172 193 186 176 Greatest Support 240 | 20 20 20 40 28 60 60 56 56 100 100 100 100 100 100 91 50 115 109 109 114 112 112 112 112 117 126 130 130 180 203 240 120 Greatest Overweight (x) 12 | . 1 1 2 . 1 1 . 1 . . . 1 1 . . 1 . . . . . . . 1 . 1 . 1 3 1 12 8 Average Overweight (x) . | . . . . . . . . . . . . . . . . . . . . . . . . . . . . . . . 3 2 Largest Inventory Capacity 26 | . 6 6 16 10 16 16 16 16 16 16 16 16 16 16 10 10 10 10 10 10 12 18 18 18 18 18 8 14 24 20 26 26 Average Capacity 15 | . 6 6 12 10 14 16 16 16 16 16 16 16 14 6 8 10 10 10 10 10 11 18 18 18 18 16 4 13 17 19 23 25 Most Carried 20 | . 6 6 14 8 16 16 16 16 16 16 16 16 16 15 10 10 10 10 10 10 12 18 18 18 18 18 4 14 19 20 20 12 Average Carried 13 | . 4 5 7 7 13 14 15 15 15 15 15 15 11 5 7 7 9 10 10 9 11 15 18 17 17 16 4 9 14 18 11 9 Final Capacity 26 | 6 6 6 10 10 16 16 16 16 16 16 16 16 16 4 10 10 10 10 10 10 12 18 18 18 18 4 8 14 18 20 26 12 Final Carried 20 | 6 6 6 8 8 15 16 16 15 15 16 16 16 15 4 7 10 10 10 10 10 12 18 18 18 17 4 4 12 18 20 10 . Class Distribution -------------------- 22% | Scavenger-Mutant 21% | Mutant 13% | Generator-Mutant 10% | Machinist-Mutant 7% | Alien-Mutant 6% | Hacker-Mutant 5% | Hacker-Sprinter Dominant Class ---------------- Mutant | -10/Materials Mutant | -10/Mines Mutant | -10/Exiles Mutant | -9/Mines Scavenger-Mutant | -8/Materials Scavenger-Mutant | -7/Factory Mutant | -7/Waste Mutant | -7/Factory Mutant | -6/Factory Machinist-Mutant | -6/Lower Caves Machinist-Mutant | -6/Lower Caves Machinist-Mutant | -6/Zion Scavenger-Mutant | -6/Deep Caves Scavenger-Mutant | -5/Proximity Caves Scavenger-Mutant | -5/Factory Mutant | -5/Waste Scavenger-Mutant | -5/Factory Mutant | -5/Upper Caves Scavenger-Mutant | -5/Upper Caves Sprinter | -5/Warlord Sprinter | -4/Proximity Caves Hacker-Sprinter | -4/Factory Hacker-Sprinter | -4/Waste Hacker-Mutant | -4/Factory Hacker-Sprinter | -4/Armory Hacker-Sprinter | -3/Research Hacker-Mutant | -3/Testing Hacker-Mutant | -2/Research Scavenger-Mutant | -2/Quarantine Generator-Mutant | -2/Section 7 Scavenger-Mutant | -1/Access Scavenger-Gunner | -1/Command Resources | -11 -10 -10 -10 -9 -8 -7 -7 -7 -6 -6 -6 -6 -6 -5 -5 -5 -5 -5 -5 -5 -4 -4 -4 -4 -4 -3 -3 -2 -2 -2 -1 -1 ----------- Run | Scr Mat Min Exi Min Mat Fac Was Fac Fac Low Low Zio Dee Pro Fac Was Fac Upp Upp War Pro Fac Was Fac Arm Res Tes Res Qua Sec Acc Com Matter Collected 12696 | 200 10 188 37 186 899 183 . 1261 87 474 10 . 348 199 231 78 217 295 . . 163 174 . 24 37 84 250 209 737 3715 1864 536 Remotely . | . . . . . . . . . . . . . . . . . . . . . . . . . . . . . . . . . Salvage Created 37634 | . 137 177 59 100 1179 228 . 1358 84 597 . . 348 315 486 1268 80 160 . . 150 594 . 45 37 186 308 867 2294 10916 12334 3327 Parts 1363 | . 11 9 13 8 67 15 . 88 15 27 . . 29 19 20 2 1 5 . . 10 32 . 1 4 12 17 49 73 350 414 72 Haulers Intercepted 15 | . . . . . 1 1 . 3 . . . . . . 2 . 1 . . . . 1 . . . . . 1 1 3 1 . Recyclers Shooed 13 | . . . . . . . . 2 . . . . . . 2 . . . . . . 1 . . . 1 . . . 2 4 1 Parts Field Recycled . | . . . . . . . . . . . . . . . . . . . . . . . . . . . . . . . . . Retrieved Matter . | . . . . . . . . . . . . . . . . . . . . . . . . . . . . . . . . . Parts Self-Destructed 59 | . . . . . . . . . . 26 1 . . 18 . . . 4 . 5 5 . . . . . . . . . . . Prevented 6 | . . . . . . . . . . . 2 . . 1 . . . . . 3 . . . . . . . . . . . . Kills | -11 -10 -10 -10 -9 -8 -7 -7 -7 -6 -6 -6 -6 -6 -5 -5 -5 -5 -5 -5 -5 -4 -4 -4 -4 -4 -3 -3 -2 -2 -2 -1 -1 ------- Run | Scr Mat Min Exi Min Mat Fac Was Fac Fac Low Low Zio Dee Pro Fac Was Fac Upp Upp War Pro Fac Was Fac Arm Res Tes Res Qua Sec Acc Com Combat Hostiles Destroyed 489 | . 4 6 . 12 25 8 . 27 4 11 . . 6 11 5 6 1 2 . . 6 6 . 4 2 2 5 7 26 126 144 33 Melee 41 | . . . . . . . . 4 . 6 . . 3 2 2 . . . . . . 4 . . . 2 5 7 6 . . . Guns 109 | . . . . . 19 4 . 12 . 4 . . 3 9 . . . 2 . . 2 2 . . . . . . 1 . 21 30 Cannons 58 | . . . . . . . . 1 . . . . . . . . . . . . . . . . . . . . 6 46 2 3 AOE 166 | . 4 6 . 12 6 4 . 10 4 . . . . . . . . . . . 4 . . 4 2 . . . 1 24 85 . Classes Destroyed 29 | . 3 2 . 1 6 . . 2 . 3 . . 1 . . 1 . 1 . . . . . . . . . . 1 8 . . Worker 29 | . . . . . 3 . . 2 1 . . . . . 1 . . . . . . . . 1 . . . 1 . 2 16 2 Builder 19 | . 1 . . . . . . 3 2 . . . . . 1 . . . . . . 1 . . . 2 . . . 3 6 . Hauler 15 | . . . . . 1 1 . 3 . . . . . . 2 . 1 . . . . 1 . . . . . 1 1 3 1 . Recycler 17 | . . 1 . 1 1 . . 1 . . . . . . . . . . . . . . . . . . . 1 . 4 5 3 Carrier 2 | . . . . . . . . . . . . . . . . . . . . . . . . . . . . . . 2 . . Minesweeper 1 | . . . . . . . . . . 1 . . . . . . . . . . . . . . . . . . . . . . Mechanic 13 | . . . . . . . . . . . . . . . . . . . . . . . . . . . . . . 2 10 1 Operator 4 | . . . . . . . . 1 . . . . . . 1 . . . . . . . . . . . 1 . . 1 . . Watcher 12 | . 1 . . . . . . . 1 . . . . . 1 . . . . . . 4 . . 1 . . 3 . . 1 . Swarmer 78 | . . 3 . 3 7 6 . 9 4 4 . . . 10 . . . . . . 4 . . 4 2 . 4 . . 7 11 . Saboteur 14 | . . . . . . . . . . . . . . . . . . . . . . . . . . . . . . 5 7 2 Grunt 141 | . 4 3 . . 6 2 . 5 . . . . . . . . . 2 . . . . . . . . . . 4 45 57 13 Brawler 18 | . . . . . 2 . . . . . . . . . . . . . . . . . . . . . . . . 4 9 3 Duelist 33 | . . . . . 1 . . . . . . . . . . . . . . . . . . . . . . . . 13 15 4 Protector 11 | . . . . . . . . . . . . . . . . . . . . . . . . . . . . . . 3 7 1 Researcher 1 | . . . . . . . . . . . . . . . . . . . . . . . . . . . . . . 1 . . Sentry 39 | . . . . . 8 . . 6 . . . . . . 2 . 1 . . . . 4 . . . 1 . 1 1 6 7 2 Specialist 3 | . . . . . . . . . . 3 . . . . . . . . . . . . . . . . . . . . . . Hunter 34 | . . . . . 1 . . 1 . 1 . . . . . . . . . . . . . . . . 1 2 9 11 6 2 Programmer 58 | . . . . . . . . 6 . 2 . . . 1 3 . . . . . 2 2 . . . 1 . 4 8 16 11 2 Behemoth 3 | . . . . . . . . . . 1 . . . . . . . . . . . . . . . . . . . 1 1 . Compactor 6 | . . . . . . . . . . . . . . . . 6 . . . . . . . . . . . . . . . . S7 Guard 4 | . . . . . . . . . . . . . . . . . . . . . . . . . . . . . . 4 . . Lightning 3 | . . . . . . . . . . . . . . . . . . . . . . . . . . . . . 3 . . . Tracker 2 | . . . . . . . . . . . . . . . . . . . . . . . . . . . . . . 2 . . Investigator 3 | . . . . . . . . . . . . . . . . . . . . . . . . . . . . . . . 2 1 Striker 9 | . . . . . . . . . . . . . . . . . . . . . . . . . . . . . . 3 5 1 Executioner 15 | . . . . . . . . . . . . . . . . . . . . . . . . . . . . . . 4 8 3 Alpha 7 2 | . . . . . . . . . . . . . . . . . . . . . . . . . . . . . . 2 . . Fortress 1 | . . . . . . . . . . . . . . . . . . . . . . . . . . . . . 1 . . . Z-Technician 4 | . . . . . . . . . . . . . 4 . . . . . . . . . . . . . . . . . . . Z-Light 2 | . . . . . . . . . . . . . 2 . . . . . . . . . . . . . . . . . . . Samaritan 3 | . . . . . . . . . . . . . . . . . . 1 . . 2 . . . . . . . . . . . Assembled 12 | . . . . 9 . . . . . . . . 3 . . . . . . . . . . . . . . . . . . . Best Kill Streak 44 | . 6 4 1 7 6 6 . 5 5 4 . . 3 10 2 1 1 2 . . 4 3 . 4 2 3 4 3 4 20 44 18 Combat Bots Only 35 | . 4 3 . 6 5 5 . 3 4 4 . . 3 10 2 1 1 2 . . 4 2 . 4 2 1 4 2 4 19 35 14 Max Kills in Single Turn 8 | . 5 2 1 2 3 3 . 3 2 3 . . 2 1 1 1 1 1 . . 4 1 . 4 2 1 1 2 2 5 8 2 Gunslinging 1 | . . . . . 1 . . . . . . . 1 . . . . . . . . . . . . . . . . . 1 . Exploded 6 | . 3 2 . 2 3 3 . 3 2 . . . . . . . . . . . 4 . . 4 2 . . . 1 4 6 . Melee 2 | . . . . . . . . 1 . 1 . . 1 1 1 . . . . . . 1 . . . 1 1 2 1 . . . Uniques/NPCs Destroyed 3 | . . . 2 . . . . . . . . . 1 . . . . . . . . . . . . . . . . . . . EX-HEX (-10/Exiles) EX-BIN (-10/Exiles) Z-Imprinter (-6/Deep Caves) Combat | -11 -10 -10 -10 -9 -8 -7 -7 -7 -6 -6 -6 -6 -6 -5 -5 -5 -5 -5 -5 -5 -4 -4 -4 -4 -4 -3 -3 -2 -2 -2 -1 -1 -------- Run | Scr Mat Min Exi Min Mat Fac Was Fac Fac Low Low Zio Dee Pro Fac Was Fac Upp Upp War Pro Fac Was Fac Arm Res Tes Res Qua Sec Acc Com Damage Taken 46320 | . 145 114 312 122 1471 552 . 2842 715 1011 . . 1586 1113 2277 . 375 374 . . 275 536 . 491 672 1489 558 1593 3245 7896 9308 7248 Core 5266 | . 25 18 19 18 171 77 . 547 71 90 . . 84 164 700 . 88 40 . . 48 23 . 78 98 211 103 172 429 308 494 1190 Absorbed by Shields 2333 | . . . . . . . . . . . . . . . . . . . . . . . . 27 . . . . . 940 895 471 Reduced by Siege Mode 888 | . . . . . . . . . . . . . . . . . . . . . . . . . . . . . . 204 432 252 Redirected to Core 150 | . . . . . . . . . . . . . . . . . . . . . . . . . . . . . 150 . . . Core Remaining (%) 59 | 100 . . . 68 68 . . 10 . . . . . 51 . . . . . . 12 . . . 82 . 75 . . 67 . . Volleys Fired 1116 | . 3 7 4 15 97 21 . 68 8 5 . . 16 27 13 19 19 6 . 2 8 15 . 1 1 4 . 1 52 430 197 77 Largest 3 | . 2 1 1 1 2 2 . 2 1 3 . . 3 3 1 1 2 2 . 1 2 2 . 1 1 1 . 1 1 2 3 3 Hottest 400 | . 60 30 120 30 48 55 . 96 30 86 . . 86 219 . . 55 120 . 45 120 135 . 120 20 94 . 20 120 185 400 360 Shots Fired 1587 | . 6 7 4 15 183 33 . 125 8 15 . . 29 35 13 19 26 12 . 2 12 20 . 1 1 4 . 1 51 433 326 206 Gun 872 | . . . . 2 177 29 . 109 . 15 . . 29 35 . . 13 6 . 2 8 19 . . . . . . 25 . 203 200 Cannon 470 | . . . 4 . . . . 4 . . . . . . . . . 6 . . . . . 1 . 4 . . 24 406 15 6 Launcher 199 | . 6 7 . 13 6 4 . 12 8 . . . . . . . . . . . 4 . . . 1 . . 1 2 27 108 . Special 46 | . . . . . . . . . . . . . . . 13 19 13 . . . . 1 . . . . . . . . . . Kinetic 553 | . . . . 2 177 24 . 109 . 15 . . 26 . . . 13 6 . . . . . . . . . . . . 96 85 Thermal 260 | . . . 4 . . . . 4 . . . . 3 35 . . . 6 . . . 6 . 1 . . . . 10 176 13 2 Explosive 71 | . 6 7 . 13 6 4 . 12 8 . . . . . . . . . . . . . . . . . . . . . 15 . Electromagnetic 409 | . . . . . . 5 . . . . . . . . . . . . . . . . . . . 4 . . 39 257 93 11 Slashing 217 | . . . . . . . . . . . . . . . . . . . . . . . . . . . . . . . 109 108 Entropic 31 | . . . . . . . . . . . . . . . . . . . . 2 12 13 . . 1 . . 1 2 . . . Robot Hit Streak 53 | . 1 3 4 6 15 10 . 15 4 5 . . 3 7 4 7 5 10 . . 11 6 . . . 4 . . 6 35 53 39 Robot Miss Streak 9 | . . 1 . 1 2 2 . 8 1 9 . . 9 6 2 2 2 2 . . 6 4 . . 1 . . . 3 5 4 4 Penetration Max 3 | . . . . . . . . 1 . . . . . . . . . . . . . . . . . . . . 1 1 1 3 Secondary Targets 23 | . . . . . 1 1 . . . 1 . . 2 1 . . . . . . . . . . . . . . . . 8 9 Max Gunslinging Chain 2 | . . . . . 1 1 . . . 1 . . 2 1 . . . . . . . . . . . . . . . . 1 1 Capacitor 449 | . . . . . . . . . . . . . . . . . . . . . . . . . . . . . 41 403 5 . Shots Hit Robots 1423 | . 1 3 3 6 133 27 . 110 5 46 . . 33 25 30 15 12 10 . . 11 40 . 2 4 16 16 42 55 345 254 179 Core Hits 1227 | . 9 10 2 22 56 15 . 91 15 23 . . 22 11 12 . 3 4 . . 10 20 . 5 3 8 8 19 27 289 376 167 Critical Hits 178 | . . . . . 3 . . 3 . 3 . . 2 . . . . . . . 1 10 . . . 2 2 14 11 80 17 30 Critical Kills 56 | . . . . . 1 . . 2 . . . . 1 . . . . . . . . 2 . . . 1 1 6 4 25 5 8 Critical Parts Destroyed 103 | . . . . . 2 . . 1 . 3 . . . . . . . . . . 1 7 . . . 1 1 8 6 49 8 16 Melee Attacks 340 | . . . . . . 6 . 35 3 47 . . 36 5 31 . . . . . 5 42 . 3 9 15 22 52 29 . . . Kinetic 11 | . . . . . . . . . . . . . . . . . . . . . . . . . . . . . 11 . . . Impact . | . . . . . . . . . . . . . . . . . . . . . . . . . . . . . . . . . Slashing 74 | . . . . . . 6 . 1 . 30 . . 11 . . . . . . . 5 14 . 1 6 . . . . . . . Piercing 255 | . . . . . . . . 34 3 17 . . 25 5 31 . . . . . . 28 . 2 3 15 22 52 18 . . . Sneak Attacks 39 | . . . . . . . . 4 1 2 . . 3 . 5 . . . . . 5 5 . 1 2 3 2 6 . . . . Combat Hostiles 1 | . . . . . . . . . . . . . . . . . . . . . . . . . . . 1 . . . . . Follow-up Attacks 49 | . . . . . . . . 2 . 16 . . 6 . . . . . . . . 7 . . 2 . 2 11 3 . . . Damage Inflicted 95199 | . 439 425 105 720 2396 988 . 4000 684 1439 . . 987 950 1140 . 206 282 . . 1404 2454 . 742 666 950 1526 2591 2957 22863 35126 9159 Guns 21264 | . . . . 25 1869 358 . 1874 . 141 . . 395 859 . . 206 110 . . 244 746 . . . . . . 494 . 6046 7897 Cannons 19454 | . . . 105 . . . . 61 . . . . . . . . . 172 . . . . . . . 139 . . 974 15224 1532 1247 Explosions 41380 | . 438 409 . 695 494 392 . 1154 566 . . . . . . . . . . . 638 . . 537 235 . . . 704 7570 27548 . Melee 12948 | . . . . . . 238 . 911 118 1298 . . 592 91 1131 . . . . . 522 1708 . 205 431 801 1526 2591 785 . . . Ramming 153 | . 1 16 . . 33 . . . . . . . . . 9 . . . . . . . . . . 10 . . . 69 . 15 Kinetic 11566 | . . . . 25 1869 274 . 1874 . 141 . . 292 . . . 206 110 . . . . . . . . . . 331 . 3006 3438 Thermal 16750 | . . . 105 . . . . 61 . . . . 103 859 . . . 172 . . . 88 . 537 . . . . 315 9385 3975 1150 Explosive 16200 | . 438 409 . 695 415 392 . 1154 566 . . . . . . . . . . . . . . . . . . . . . 12131 . Electromagnetic 27987 | . . . . . 79 84 . . . . . . . . . . . . . . . . . . . 139 . . 1153 13409 12974 149 Impact . | . . . . . . . . . . . . . . . . . . . . . . . . . . . . . . . . . Slashing 9861 | . . . . . . 238 . . . 787 . . 191 . . . . . . . 522 310 . . 366 . . . . . 3040 4407 Piercing 10203 | . . . . . . . . 911 118 511 . . 401 91 1131 . . . . . . 1398 . 205 65 801 1526 2591 454 . . . Entropic 2479 | . . . . . . . . . . . . . . . . . . . . . 882 658 . . 235 . . . 704 . . . Highest Corruption 26 | . . . . . 4 1 11 11 2 2 . . . . 3 3 3 3 . . 4 1 8 7 3 5 5 15 26 9 . . Average Corruption 6 | . . . . . 3 1 8 4 1 1 . . . . 2 3 3 2 . . 3 1 7 5 2 2 5 12 13 8 . . Corruption Purged 37 | . . . . . 1 . . 21 . 4 . . . . . . . 3 . . . . 1 7 . . . . . . . . Effects 313 | . . . . . 23 1 3 47 . 1 . . . . 3 9 9 3 . . 1 3 2 9 2 1 9 39 74 74 . . Message Errors 52 | . . . . . 2 . 1 8 . 1 . . . . . 4 1 1 . . . 1 1 1 2 . 1 5 13 10 . . Matter Fused 58 | . . . . . 8 . . 4 . . . . . . 1 2 2 . . . 1 . . 2 . 1 4 6 10 17 . . Heat Flow Errors 32 | . . . . . 2 . . 7 . . . . . . . 1 3 . . . . . 1 2 . . 1 . 6 9 . . Energy Discharges 36 | . . . . . 4 1 . 6 . . . . . . 1 . 2 1 . . . . . . . . 2 5 8 6 . . Parts Rejected 1 | . . . . . . . . 1 . . . . . . . . . . . . . . . . . . . . . . . . Data Loss (minor) 33 | . . . . . 1 . 1 10 . . . . . . . 2 . 1 . . . . . 1 . . . 2 9 6 . . Data Loss (major) 10 | . . . . . . . . 1 . . . . . . . . . . . . . . . 2 . . . . 4 3 . . Misfires 2 | . . . . . . . . 1 . . . . . . . . . . . . . . . . . . . . . 1 . . Alerts 4 | . . . . . . . . 1 . . . . . . . . . . . . . . . . . . . 2 1 . . . Misdirections 27 | . . . . . . . 1 4 . . . . . . . . . . . . . . . . . . . 10 12 . . . Targeting Errors 53 | . . . . . 3 . . 4 . . . . . . 1 . 1 . . . . 2 . 1 . . 1 9 10 21 . . Weapon Failures 5 | . . . . . 3 . . . . . . . . . . . . . . . . . . . . . . . 1 1 . . Overload Shots . | . . . . . . . . . . . . . . . . . . . . . . . . . . . . . . . . . Overflow Damage 3872 | . 9 6 . 8 . 20 . 97 11 123 . . 109 . 98 . . 54 . . 177 235 . 170 244 220 259 37 54 643 1052 246 Projectiles 716 | . . . . . . . . . . . . . . . . . . 54 . . . . . . . . . . 45 371 . 246 Explosions 1461 | . 9 6 . 8 . 5 . 23 11 . . . . . . . . . . . 22 . . 59 . . . . 9 257 1052 . Melee 1695 | . . . . . . 15 . 74 . 123 . . 109 . 98 . . . . . 155 235 . 111 244 220 259 37 . 15 . . Knockbacks 4 | . . . . . 1 . . . . . . . . . . . . . . . . . . . . . . . . 1 . 2 Impact 2 | . . . . . 1 . . . . . . . . . . . . . . . . . . . . . . . . 1 . . Kinetic 1 | . . . . . . . . . . . . . . . . . . . . . . . . . . . . . . . . 1 Secondary 1 | . . . . . . . . . . . . . . . . . . . . . . . . . . . . . . . . 1 Self-Inflicted Damage 1164 | . . 76 . 58 . . . 95 16 . . . . . 4 . . . . . . . . . . 5 . . . 49 861 . Shots 46 | . . 5 . 2 . . . 4 1 . . . . . . . . . . . . . . . . . . . . 14 20 . Rammed 14 | . 1 1 . . 4 . . . . . . . . . 1 . . . . . . . . . . 1 . . . 4 . 2 Targets Rammed 14 | . 1 1 . . 4 . . . . . . . . . 1 . . . . . . . . . . 1 . . . 4 . 2 Kicked . | . . . . . . . . . . . . . . . . . . . . . . . . . . . . . . . . . Crushed . | . . . . . . . . . . . . . . . . . . . . . . . . . . . . . . . . . Highest Temperature 380 | . 18 1 240 12 126 . . 275 102 176 320 32 214 307 4 145 138 51 . . . 229 203 246 233 182 202 305 366 380 182 43 Average Temperature 63 | . 15 1 104 9 65 . . 78 31 25 159 18 56 216 3 75 62 22 . . . 27 37 104 91 71 58 115 97 98 30 15 Received Heat Transfer 4310 | . 87 12 . 40 504 117 . 375 174 39 . . 441 . 81 . 9 135 . . 9 57 . 72 21 129 60 90 117 544 495 702 Effects 11 | . . . . . . . . 3 . . . . . 3 . . . . . . . 1 . . . . . 4 . . . . Energy Bleed 3 | . . . . . . . . 1 . . . . . 1 . . . . . . . . . . . . . 1 . . . . Interference 7 | . . . . . . . . 2 . . . . . 2 . . . . . . . 1 . . . . . 2 . . . . Matter Decay 1 | . . . . . . . . . . . . . . . . . . . . . . . . . . . . 1 . . . . Siege Activations 16 | . . . . . . . . . . . . . . . . . . . . . . . . . . . . . . 8 6 2 Total Turns 607 | . . . . . . . . . . . . . . . . . . . . . . . . . . . . . . 270 203 134 Longest Duration 84 | . . . . . . . . . . . . . . . . . . . . . . . . . . . . . . 70 74 84 Robots Corrupted 101 | . . . . . . . . . . . . . . . . . . . . . . . . . . . . . 8 56 37 . Combat Hostiles 97 | . . . . . . . . . . . . . . . . . . . . . . . . . . . . . 7 55 35 . Parts Fried 269 | . . . . . . . . . . . . . . . . . . . . . . . . . . . . . 17 130 120 2 Impact Corruptions 1 | . . . . . . . . . . . . . . . . . . . . . . . . . . . . . . 1 . . Robots Melted 1 | . . . . . . . . . . . . . . . . . . . . . . . . . . . . . . 1 . . Combat Hostiles 1 | . . . . . . . . . . . . . . . . . . . . . . . . . . . . . . 1 . . Parts Melted 55 | . . . 7 . . . . . . 6 . . . 2 . . . . . . . . . . . . . . 1 31 8 . Heat Transferred 12281 | . . . 240 . . . . 111 . . . . 111 925 . . . 250 . . . 148 . 350 . . . . 222 7677 2247 . Parts Sabotaged 2 | . . . . . . . . . . . . . . . . . . . . . . . . . . . . . . . 2 . Parts Stolen . | . . . . . . . . . . . . . . . . . . . . . . . . . . . . . . . . . Parts Stripped . | . . . . . . . . . . . . . . . . . . . . . . . . . . . . . . . . . Power Chain Reactions 40 | . . . . . . . . 1 . . . . . . . . . . . . . . . . . . . . . 19 20 . Missiles Intercepted . | . . . . . . . . . . . . . . . . . . . . . . . . . . . . . . . . . Alert | -11 -10 -10 -10 -9 -8 -7 -7 -7 -6 -6 -6 -6 -6 -5 -5 -5 -5 -5 -5 -5 -4 -4 -4 -4 -4 -3 -3 -2 -2 -2 -1 -1 ------- Run | Scr Mat Min Exi Min Mat Fac Was Fac Fac Low Low Zio Dee Pro Fac Was Fac Upp Upp War Pro Fac Was Fac Arm Res Tes Res Qua Sec Acc Com Peak Influence 8584 | . 213 227 . 120 606 1004 337 1623 1370 . . . . . 466 43 719 . . . . 664 232 739 583 510 339 289 544 3943 8584 6372 Initial 5493 | . . 82 . . 46 275 307 235 795 . . . . . 170 43 . . . . . 201 232 148 361 220 264 44 121 169 2365 5493 Average 1649 | . 65 158 . 100 405 544 326 688 1019 . . . . . 272 28 390 . . . . 414 217 606 385 361 222 158 289 1760 7314 5778 Maximum Alert Level 5 | . 1 1 . . 2 3 1 5 4 . . . . . 2 . 3 . . . . 2 1 3 2 2 1 1 2 5 5 5 Low Security (%) 14 | . 92 48 . 100 7 . . 8 . . . . . . 37 100 36 . . . . . . 5 6 . 27 66 10 2 . . Level 1 25 | . 7 51 . . 35 46 100 24 . . . . . . 41 . 1 . . . . 49 100 . 49 45 72 33 78 4 . . Level 2 18 | . . . . . 57 18 . 19 . . . . . . 20 . 58 . . . . 50 . 85 43 54 . . 10 19 . . Level 3 10 | . . . . . . 34 . 32 56 . . . . . . . 4 . . . . . . 9 . . . . . 12 . . Level 4 9 | . . . . . . . . 14 43 . . . . . . . . . . . . . . . . . . . . 29 . . Level 5 1 | . . . . . . . . . . . . . . . . . . . . . . . . . . . . . . 1 . 17 High Security 2 | . . . . . . . . . . . . . . . . . . . . . . . . . . . . . . . . 82 Max Security 17 | . . . . . . . . . . . . . . . . . . . . . . . . . . . . . . 31 99 . Sterilizations 2 | . . . . . . . . . . . . . . . . . . . . . . . . . . . . . . 1 1 . Squads Dispatched 139 | . 3 . . . 4 4 . 15 3 . . . . . 3 . 4 . . . . 2 . 1 2 3 3 2 6 32 38 14 Investigation 12 | . 2 . . . 1 . . 2 . . . . . . 2 . 2 . . . . . . . 1 1 . 1 . . . . Extermination 17 | . . . . . . 1 . 3 . . . . . . . . . . . . . 1 . . . 1 . . 4 7 . . Reinforcement 25 | . 1 . . . . 3 . 6 1 . . . . . 1 . 1 . . . . . . . 1 1 2 1 2 3 2 . Assault 72 | . . . . . . . . 1 2 . . . . . . . 1 . . . . 1 . 1 . . 1 . . 19 32 14 Garrison 10 | . . . . . 3 . . 3 . . . . . . . . . . . . . . . . . . . . . . 4 . Intercept 3 | . . . . . . . . . . . . . . . . . . . . . . . . . . . . . . 3 . . Construction Impeded 6 | . . . . . . 1 . 1 1 . . . . . . . . . . . . . . . . . . . . 1 2 . Haulers Reinforced 3 | . . . . . . 1 . 2 . . . . . . . . . . . . . . . . . . . . . . . . Stealth | -11 -10 -10 -10 -9 -8 -7 -7 -7 -6 -6 -6 -6 -6 -5 -5 -5 -5 -5 -5 -5 -4 -4 -4 -4 -4 -3 -3 -2 -2 -2 -1 -1 --------- Run | Scr Mat Min Exi Min Mat Fac Was Fac Fac Low Low Zio Dee Pro Fac Was Fac Upp Upp War Pro Fac Was Fac Arm Res Tes Res Qua Sec Acc Com Distress Signals 41 | . . . . . 1 . . 6 1 . . . . . 2 . . . . . . 2 . . 3 1 1 8 3 9 4 . Communications Jammed . | . . . . . . . . . . . . . . . . . . . . . . . . . . . . . . . . . Distress Signals . | . . . . . . . . . . . . . . . . . . . . . . . . . . . . . . . . . Times Spotted 1026 | . 8 6 1 15 39 23 6 92 19 12 . . 6 19 25 6 23 18 . 7 13 34 2 13 26 31 14 30 30 192 218 98 Peak Tracking Total 26 | . 6 3 11 6 7 7 6 10 8 4 . . 3 10 8 2 6 12 . 8 9 10 3 13 22 24 5 5 5 19 23 26 Tactical Retreats 103 | . 1 . 1 . 10 5 . 22 3 1 . . . 5 3 . 1 6 . . 4 4 1 1 4 2 3 4 2 5 7 8 Traps | -11 -10 -10 -10 -9 -8 -7 -7 -7 -6 -6 -6 -6 -6 -5 -5 -5 -5 -5 -5 -5 -4 -4 -4 -4 -4 -3 -3 -2 -2 -2 -1 -1 ------- Run | Scr Mat Min Exi Min Mat Fac Was Fac Fac Low Low Zio Dee Pro Fac Was Fac Upp Upp War Pro Fac Was Fac Arm Res Tes Res Qua Sec Acc Com Traps Triggered 34 | . 1 . . . 2 1 . 7 1 . . . . . 1 . 2 . . . . 1 . 2 . . 1 . . 3 10 2 Indirectly 11 | . . . . . 1 . . . . . . . . . . . . . . . . . . . . . . . . . 10 . Trap Hack Attempts . | . . . . . . . . . . . . . . . . . . . . . . . . . . . . . . . . . Triggered . | . . . . . . . . . . . . . . . . . . . . . . . . . . . . . . . . . Disarmed . | . . . . . . . . . . . . . . . . . . . . . . . . . . . . . . . . . Reprogrammed . | . . . . . . . . . . . . . . . . . . . . . . . . . . . . . . . . . Reused 6 | . . . . . . . . . . 5 . . 1 . . . . . . . . . . . . . . . . . . . Traps Extracted . | . . . . . . . . . . . . . . . . . . . . . . . . . . . . . . . . . Installed 6 | . . . . . . . . . . 5 . . 1 . . . . . . . . . . . . . . . . . . . Triggered 16 | . . . . . . . . . . 5 1 . . 2 . . . . . 7 . . . . . . . . . . 1 . Machines | -11 -10 -10 -10 -9 -8 -7 -7 -7 -6 -6 -6 -6 -6 -5 -5 -5 -5 -5 -5 -5 -4 -4 -4 -4 -4 -3 -3 -2 -2 -2 -1 -1 ---------- Run | Scr Mat Min Exi Min Mat Fac Was Fac Fac Low Low Zio Dee Pro Fac Was Fac Upp Upp War Pro Fac Was Fac Arm Res Tes Res Qua Sec Acc Com Machines Disabled 83 | . 1 . . 1 2 . . 5 . 1 . . 1 . . . 5 . . 1 . 1 . 16 2 1 2 1 8 25 10 . Max in Single Turn 16 | . 1 . . 1 2 . . 4 . 1 . . 1 . . . . . . 1 . 1 . 16 1 1 1 1 1 1 1 . Garrison Access 6 | . . . . . 1 . . 1 1 . . . . . . . . . . . . 1 . 1 . . . 1 . . . . Machines Sabotaged . | . . . . . . . . . . . . . . . . . . . . . . . . . . . . . . . . . Garrisons Compromised . | . . . . . . . . . . . . . . . . . . . . . . . . . . . . . . . . . Overloaded Fab Kills . | . . . . . . . . . . . . . . . . . . . . . . . . . . . . . . . . . Fab Network Shutdowns 2 | . . . . . . 1 . . 1 . . . . . . . . . . . . . . . . . . . . . . . Hacking | -11 -10 -10 -10 -9 -8 -7 -7 -7 -6 -6 -6 -6 -6 -5 -5 -5 -5 -5 -5 -5 -4 -4 -4 -4 -4 -3 -3 -2 -2 -2 -1 -1 --------- Run | Scr Mat Min Exi Min Mat Fac Was Fac Fac Low Low Zio Dee Pro Fac Was Fac Upp Upp War Pro Fac Was Fac Arm Res Tes Res Qua Sec Acc Com Machines Accessed 99 | . 4 . 2 . 5 5 . 19 4 . . . . . 10 . 4 1 . 3 . 8 . 4 5 5 6 4 7 3 . . Terminals 51 | . 3 . . . 2 2 . 9 1 . . . . . 5 . 3 . . . . 2 . 2 3 3 4 4 5 3 . . Fabricators 17 | . . . . . . 3 . 1 2 . . . . . 3 . 1 . . . . 2 . 1 1 2 1 . . . . . Repair Stations 9 | . . . . . 1 . . 3 . . . . . . 1 . . . . . . 2 . . 1 . 1 . . . . . Recycling Units 2 | . 1 . . . . . . . . . . . . . . . . . . . . 1 . . . . . . . . . . Scanalyzers 6 | . . . . . 1 . . 4 . . . . . . . . . . . . . . . . . . . . 1 . . . Garrison Access 8 | . . . . . 1 . . 2 1 . . . . . 1 . . . . . . 1 . 1 . . . . 1 . . . Total Hacks 268 | . 7 . 2 . 14 10 . 43 8 . . . . . 35 . 11 1 . 8 . 28 . 17 19 17 18 7 17 6 . . Successful 134 | . 3 . 2 . 8 7 . 17 6 . . . . . 12 . 3 1 . 8 . 15 . 9 12 10 9 1 7 4 . . Failed 134 | . 4 . . . 6 3 . 26 2 . . . . . 23 . 8 . . . . 13 . 8 7 7 9 6 10 2 . . Catastrophic 29 | . 2 . . . 2 3 . 6 . . . . . . 1 . 1 . . . . 2 . 4 . 1 3 4 . . . . Database Lockouts . | . . . . . . . . . . . . . . . . . . . . . . . . . . . . . . . . . Manual 118 | . 7 . 1 . 5 1 . 16 . 1 . 4 . . 15 . 3 . . . . 13 . 13 9 6 11 2 9 2 . . Terminals 151 | . 6 . . . 5 3 . 21 2 . . . . . 21 . 7 . . . . 8 . 11 15 11 15 7 13 6 . . Fabricators 52 | . . . . . . 7 . 3 4 . . . . . 9 . 4 . . . . 11 . 5 1 6 2 . . . . . Repair Stations 21 | . . . . . 2 . . 7 . . . . . . 3 . . . . . . 5 . . 3 . 1 . . . . . Recycling Units 4 | . 1 . . . . . . . . . . . . . . . . . . . . 3 . . . . . . . . . . Scanalyzers 16 | . . . . . 6 . . 8 . . . . . . . . . . . . . . . . . . . . 2 . . . Garrison Access 13 | . . . . . 1 . . 4 2 . . . . . 2 . . . . . . 1 . 1 . . . . 2 . . . Terminal Hacks 46 | . . . 2 . 1 1 . 2 1 . . . . . 5 . 1 1 . 8 . . . 2 5 4 3 1 5 4 . . Record 4 | . . . 1 . . . . . . . . . . . . . . . . . . . . . . . . . 3 . . . Part Schematic 1 | . . . . . . . . . . . . . . . 1 . . . . . . . . . . . . . . . . . Prototype ID Bank 7 | . . . . . . . . . . . . . . . . . . . . 6 . . . . . 1 . . . . . . Open Door 4 | . . . . . . . . . . . . . . . . . . 1 . 2 . . . . . . . . . 1 . . Branch Access Points 6 | . . . . . . 1 . . 1 . . . . . 1 . 1 . . . . . . 1 . 1 . . . . . . Machine Index 1 | . . . . . . . . . . . . . . . . . . . . . . . . . . . . 1 . . . . Terminal Index 1 | . . . . . . . . . . . . . . . 1 . . . . . . . . . . . . . . . . . Fabricator Index 2 | . . . . . . . . 1 . . . . . . 1 . . . . . . . . . . . . . . . . . Repair Station Index 1 | . . . . . . . . . . . . . . . . . . . . . . . . . . 1 . . . . . . Scanalyzer Index 2 | . . . . . 1 . . 1 . . . . . . . . . . . . . . . . . . . . . . . . Alert Level 4 | . . . . . . . . . . . . . . . . . . . . . . . . . 1 . 1 . 1 1 . . Unreport Threat 8 | . . . . . . . . . . . . . . . 1 . . . . . . . . . 3 . 2 . 1 1 . . Extermination Status 1 | . . . . . . . . . . . . . . . . . . . . . . . . . . 1 . . . . . . Hauler Manifests 2 | . . . . . . . . . . . . . . . . . . . . . . . . 1 1 . . . . . . . EX-Prototype ID Bank 1 | . . . 1 . . . . . . . . . . . . . . . . . . . . . . . . . . . . . Activate Exoskeleton 1 | . . . . . . . . . . . . . . . . . . . . . . . . . . . . . . 1 . . Fabricator Hacks 29 | . . . . . . 6 . 3 4 . . . . . 2 . 2 . . . . 5 . 1 . 4 2 . . . . . Network Status 1 | . . . . . . . . . . . . . . . . . . . . . . . . 1 . . . . . . . . Load Schematic 14 | . . . . . . 3 . 1 2 . . . . . 2 . 1 . . . . 2 . . . 2 1 . . . . . Build 14 | . . . . . . 3 . 2 2 . . . . . . . 1 . . . . 3 . . . 2 1 . . . . . Repair Station Hacks 11 | . . . . . 2 . . 3 . . . . . . 2 . . . . . . 3 . . 1 . . . . . . . Scan Component 8 | . . . . . 1 . . 2 . . . . . . 1 . . . . . . 3 . . 1 . . . . . . . Repair 3 | . . . . . 1 . . 1 . . . . . . 1 . . . . . . . . . . . . . . . . . Recycling Unit Hacks . | . . . . . . . . . . . . . . . . . . . . . . . . . . . . . . . . . Scanalyzer 8 | . . . . . 3 . . 4 . . . . . . . . . . . . . . . . . . . . 1 . . . Insert Component 6 | . . . . . 2 . . 3 . . . . . . . . . . . . . . . . . . . . 1 . . . Analyze 2 | . . . . . 1 . . 1 . . . . . . . . . . . . . . . . . . . . . . . . Garrison Access Hacks 5 | . . . . . 1 . . 1 1 . . . . . . . . . . . . 1 . 1 . . . . . . . . Seal Access 5 | . . . . . 1 . . 1 1 . . . . . . . . . . . . 1 . 1 . . . . . . . . Unauthorized Hacks 35 | . 3 . . . 1 . . 4 . . . . . . 3 . . . . . . 6 . 5 6 2 4 . 1 . . . Terminals 28 | . 2 . . . 1 . . 4 . . . . . . 3 . . . . . . 2 . 4 6 1 4 . 1 . . . Track 7 | . 1 . . . . . . . . . . . . . . . . . . . . . . 1 2 . 2 . 1 . . . Assimilate 4 | . . . . . . . . 2 . . . . . . . . . . . . . . . . 1 1 . . . . . . Botnet 14 | . 1 . . . 1 . . 2 . . . . . . 2 . . . . . . 2 . 2 2 . 2 . . . . . Operators 3 | . . . . . . . . . . . . . . . 1 . . . . . . . . 1 1 . . . . . . . Fabricators 3 | . . . . . . . . . . . . . . . . . . . . . . 1 . 1 . 1 . . . . . . Prioritize 2 | . . . . . . . . . . . . . . . . . . . . . . 1 . . . 1 . . . . . . Haulers 1 | . . . . . . . . . . . . . . . . . . . . . . . . 1 . . . . . . . . Repair Stations . | . . . . . . . . . . . . . . . . . . . . . . . . . . . . . . . . . Recycling Units 4 | . 1 . . . . . . . . . . . . . . . . . . . . 3 . . . . . . . . . . Monitor 1 | . . . . . . . . . . . . . . . . . . . . . . 1 . . . . . . . . . . Reject 1 | . . . . . . . . . . . . . . . . . . . . . . 1 . . . . . . . . . . Recyclers 1 | . . . . . . . . . . . . . . . . . . . . . . 1 . . . . . . . . . . Tunnel 1 | . 1 . . . . . . . . . . . . . . . . . . . . . . . . . . . . . . . Scanalyzers . | . . . . . . . . . . . . . . . . . . . . . . . . . . . . . . . . . Garrison Access . | . . . . . . . . . . . . . . . . . . . . . . . . . . . . . . . . . Data Cores Recovered 1 | . . . . . . . . . . . . . . . . . . . . . . . . . . . 1 . . . . . Used 1 | . . . . . . . . . . . . . . . . . . . . . . . . . . . 1 . . . . . Hacking Detections 78 | . 3 . . . 4 5 . 18 3 . . . . . 10 . 4 . . . . 5 . 3 5 4 3 4 5 2 . . Full Trace Events 9 | . 1 . . . . . . 2 . . . . . . 2 . 1 . . . . . . . 1 1 . 1 . . . . Feedback Events 3 | . . . . . . . . 1 . . . . . . 1 . . . . . . . . . . . . 1 . . . . Corruption 1 | . . . . . . . . 1 . . . . . . . . . . . . . . . . . . . . . . . . Hackware Fried 2 | . . . . . . . . . . . . . . . 1 . . . . . . . . . . . . 1 . . . . Feedback Blocked . | . . . . . . . . . . . . . . . . . . . . . . . . . . . . . . . . . Robot Schematics Acquired . | . . . . . . . . . . . . . . . . . . . . . . . . . . . . . . . . . Robots Built . | . . . . . . . . . . . . . . . . . . . . . . . . . . . . . . . . . Matter . | . . . . . . . . . . . . . . . . . . . . . . . . . . . . . . . . . Time . | . . . . . . . . . . . . . . . . . . . . . . . . . . . . . . . . . Total Robot Build Rating . | . . . . . . . . . . . . . . . . . . . . . . . . . . . . . . . . . Part Schematics Acquired 3 | . . . . . 1 . . 1 . . . . . . 1 . . . . . . . . . . . . . . . . . Parts Built 22 | . . . . . . 3 . 4 4 . . . . . . . 2 . . . . 3 . . . 4 2 . . . . . Matter 2968 | . . . . . . 570 . 424 424 . . . . . . . 212 . . . . 702 . . . 424 212 . . . . . Time 1047 | . . . . . . 237 . 106 159 . . . . . . . 53 . . . . 245 . . . 141 106 . . . . . Total Part Build Rating 132 | . . . . . . 15 . 24 24 . . . . . . . 12 . . . . 21 . . . 24 12 . . . . . Parts Repaired 3 | . . . . . 1 . . 1 . . . . . . 1 . . . . . . . . . . . . . . . . . Time 131 | . . . . . 50 . . 25 . . . . . . 56 . . . . . . . . . . . . . . . . . Parts Recycled . | . . . . . . . . . . . . . . . . . . . . . . . . . . . . . . . . . Recycled Matter . | . . . . . . . . . . . . . . . . . . . . . . . . . . . . . . . . . Retrieved Matter . | . . . . . . . . . . . . . . . . . . . . . . . . . . . . . . . . . Retrieved Components . | . . . . . . . . . . . . . . . . . . . . . . . . . . . . . . . . . Parts Scanalyzed 3 | . . . . . 2 . . 1 . . . . . . . . . . . . . . . . . . . . . . . . Part Schematics Acquired 2 | . . . . . 1 . . 1 . . . . . . . . . . . . . . . . . . . . . . . . Parts Damaged . | . . . . . . . . . . . . . . . . . . . . . . . . . . . . . . . . . Bothacking | -11 -10 -10 -10 -9 -8 -7 -7 -7 -6 -6 -6 -6 -6 -5 -5 -5 -5 -5 -5 -5 -4 -4 -4 -4 -4 -3 -3 -2 -2 -2 -1 -1 ------------ Run | Scr Mat Min Exi Min Mat Fac Was Fac Fac Low Low Zio Dee Pro Fac Was Fac Upp Upp War Pro Fac Was Fac Arm Res Tes Res Qua Sec Acc Com Used RIF Installer . | . . . . . . . . . . . . . . . . . . . . . . . . . . . . . . . . . Robots Hacked . | . . . . . . . . . . . . . . . . . . . . . . . . . . . . . . . . . Non-combat . | . . . . . . . . . . . . . . . . . . . . . . . . . . . . . . . . . Combat . | . . . . . . . . . . . . . . . . . . . . . . . . . . . . . . . . . Robot Hacks Applied . | . . . . . . . . . . . . . . . . . . . . . . . . . . . . . . . . . Relay Couplers Released 5 | . . . . . . . . 4 . . . . . . . . . . . . . . . . . . . 1 . . . . Machine Destruction 1 | . . . . . . . . . . . . . . . . . . . . . . . . . . . . 1 . . . . Programmers 4 | . . . . . . . . 4 . . . . . . . . . . . . . . . . . . . . . . . . Robots Rewired . | . . . . . . . . . . . . . . . . . . . . . . . . . . . . . . . . . Allies Hacked . | . . . . . . . . . . . . . . . . . . . . . . . . . . . . . . . . . Hacks Repelled . | . . . . . . . . . . . . . . . . . . . . . . . . . . . . . . . . . Allies | -11 -10 -10 -10 -9 -8 -7 -7 -7 -6 -6 -6 -6 -6 -5 -5 -5 -5 -5 -5 -5 -4 -4 -4 -4 -4 -3 -3 -2 -2 -2 -1 -1 -------- Run | Scr Mat Min Exi Min Mat Fac Was Fac Fac Low Low Zio Dee Pro Fac Was Fac Upp Upp War Pro Fac Was Fac Arm Res Tes Res Qua Sec Acc Com Total Allies 31 | . . . . . . . . . . . . . . . . 20 . . . . . . 1 . . 1 . . . 1 . 8 Largest Group 19 | . . . . . . . . . . . . . . . . 19 19 . . . . . 1 . . 1 . . . 1 1 6 Highest-Rated Group 1075 | . . . . . . . . . . . . . . . . 696 696 . . . . . 46 . . 44 . . . 1075 1075 81 Highest-Rated Ally 1075 | . . . . . . . . . . . . . . . . 50 50 . . . . . 46 . . 44 . . . 1075 1075 15 Total Orders 1 | . . . . . . . . . . . . . . . . . . . . . . . . . . . . 1 . . . . EXPLORE 1 | . . . . . . . . . . . . . . . . . . . . . . . . . . . . 1 . . . . Ally Attacks 443 | . . . . . . . . . . . . . . . . 3 69 . . . . . 4 . . . . . . 94 244 29 Total Damage 20671 | . . . . . . . . . . . . . . . . 61 2093 . . . . . 130 . . . . . . 4791 12441 1155 Kills 106 | . . . . . . . . . . . . . . . . . 14 . . . . . . . . . . . . 28 58 6 Allies Corrupted . | . . . . . . . . . . . . . . . . . . . . . . . . . . . . . . . . . Allies Melted . | . . . . . . . . . . . . . . . . . . . . . . . . . . . . . . . . . Intel | -11 -10 -10 -10 -9 -8 -7 -7 -7 -6 -6 -6 -6 -6 -5 -5 -5 -5 -5 -5 -5 -4 -4 -4 -4 -4 -3 -3 -2 -2 -2 -1 -1 ------- Run | Scr Mat Min Exi Min Mat Fac Was Fac Fac Low Low Zio Dee Pro Fac Was Fac Upp Upp War Pro Fac Was Fac Arm Res Tes Res Qua Sec Acc Com Robot Analysis Total . | . . . . . . . . . . . . . . . . . . . . . . . . . . . . . . . . . Derelict Logs Recovered 12 | . . 2 . . . . . . . 3 1 1 . 3 . . . 1 1 . . . . . . . . . . . . . Drone Launches 6 | . . . . . . . . . . . . . . . . . . . . . . . . . . . . 6 . . . . Drone Recoveries 2 | . . . . . . . . . . . . . . . . . . . . . . . . . . . . 2 . . . . Exploration | -11 -10 -10 -10 -9 -8 -7 -7 -7 -6 -6 -6 -6 -6 -5 -5 -5 -5 -5 -5 -5 -4 -4 -4 -4 -4 -3 -3 -2 -2 -2 -1 -1 ------------- Run | Scr Mat Min Exi Min Mat Fac Was Fac Fac Low Low Zio Dee Pro Fac Was Fac Upp Upp War Pro Fac Was Fac Arm Res Tes Res Qua Sec Acc Com Turns Passed 22187 | . 156 469 636 201 1140 454 62 2467 530 1194 173 697 847 315 544 495 453 279 138 366 161 602 107 298 130 370 496 684 1566 3639 1948 570 Spaces Moved 20577 | 1 148 367 364 135 472 492 95 2605 694 879 193 914 921 567 961 444 684 369 297 795 405 1280 94 416 325 843 729 746 1042 1694 452 154 Core . | . . . . . . . . . . . . . . . . . . . . . . . . . . . . . . . . . Treads 3469 | . 2 155 347 . 382 64 . . . . . . . . . . . . . . . . . . . . . . 507 1694 220 98 Legs 27 | 1 . . . . . . . . . . . . . . . . . . . . . . . . . . . . 8 . . 18 Wheels 628 | . 146 212 . . . . . . . . . . . . . . . . . . . . . . . . . . . . 232 38 Hover 16453 | . . . 17 135 90 428 95 2605 694 879 193 914 921 567 961 444 684 369 297 795 405 1280 94 416 325 843 729 746 527 . . . Flight . | . . . . . . . . . . . . . . . . . . . . . . . . . . . . . . . . . Fastest Speed 26 | 120 90 90 60 60 60 56 56 48 65 68 68 68 34 31 31 76 29 29 29 26 26 26 26 26 26 29 32 32 48 147 120 143 Average Speed 72 | 120 90 119 167 60 146 70 56 55 66 68 68 75 69 37 36 79 49 35 45 32 26 26 26 65 28 30 37 56 115 165 150 179 Slowest Speed 240 | 120 160 160 200 60 180 180 56 110 72 68 68 146 150 76 80 146 76 58 58 58 26 52 26 88 29 106 76 106 210 182 210 240 Overloaded Moves . | . . . . . . . . . . . . . . . . . . . . . . . . . . . . . . . . . Propulsion Burnouts . | . . . . . . . . . . . . . . . . . . . . . . . . . . . . . . . . . Robots Hopped . | . . . . . . . . . . . . . . . . . . . . . . . . . . . . . . . . . Cave-ins Triggered 1 | . . . . . . . . . . . . . . . . . . . . . . . . . . . . . . . . 1 Exploration Rate (%) 51 | 2 43 91 69 27 33 11 72 65 19 82 39 84 74 75 29 95 21 55 53 91 64 28 72 18 36 30 89 31 89 75 23 8 Regions Visited 32 Branch Regions 17 Pre-discovered Areas 5 | . 1 1 1 . . . . . . . . 2 . . . . . . . . . . . . . . . . . . . . Known Exits Taken 12 | . . . . . . . . 1 1 1 1 . . . . . 1 1 1 1 1 . . 1 . 1 . 1 . . . . Unknown Exits Taken 14 | 1 1 1 1 1 1 . . . . . . 1 1 1 . . . . . . . . . . 1 . 1 . 1 1 1 . Scrap Searched 14 | . . 1 . . . . . . . 3 2 . . 4 . . . 1 . . 3 . . . . . . . . . . . Spaces Dug 237 | . . 29 . 25 . 7 . 3 6 . . . . . 4 . . . . . 38 5 . . . . . 55 59 6 . . Terrain Destroyed 935 | . 36 55 1 77 28 17 . 59 19 . . . 1 10 4 . . 1 . . 106 16 . 46 44 . . 55 70 30 248 12 Melee 15 | . . . . . . . . 3 . . . . . . 4 . . . . . . 5 . . . . . 3 . . . . Projectile 120 | . . . 1 . . . . . . . . . 1 10 . . . 1 . . 4 11 . . . . . . . 14 66 12 AOE 800 | . 36 55 . 77 28 17 . 56 19 . . . . . . . . . . . 102 . . 46 44 . . 52 70 16 182 . Terrain Rammed . | . . . . . . . . . . . . . . . . . . . . . . . . . . . . . . . . . Walls Destroyed . | . . . . . . . . . . . . . . . . . . . . . . . . . . . . . . . . . Machines Disabled . | . . . . . . . . . . . . . . . . . . . . . . . . . . . . . . . . . Actions | -11 -10 -10 -10 -9 -8 -7 -7 -7 -6 -6 -6 -6 -6 -5 -5 -5 -5 -5 -5 -5 -4 -4 -4 -4 -4 -3 -3 -2 -2 -2 -1 -1 --------- Run | Scr Mat Min Exi Min Mat Fac Was Fac Fac Low Low Zio Dee Pro Fac Was Fac Upp Upp War Pro Fac Was Fac Arm Res Tes Res Qua Sec Acc Com Total 26320 | . 162 391 387 239 756 562 104 3436 751 1410 234 922 1056 624 1072 549 759 503 297 902 444 1464 175 435 346 922 906 925 1355 2497 1446 289 Wait 3117 | . . 7 2 84 117 4 5 589 3 445 39 . 12 3 33 68 19 120 . 76 14 103 81 . 4 19 142 105 82 218 716 7 Move 20546 | . 147 366 363 134 471 492 94 2604 693 878 192 913 920 566 961 443 683 368 296 794 404 1280 93 414 324 842 728 745 1041 1693 451 153 Hop . | . . . . . . . . . . . . . . . . . . . . . . . . . . . . . . . . . Pick Up 244 | . 3 3 7 1 20 13 2 17 12 11 1 3 25 5 7 4 3 . . 4 3 13 . 1 2 7 . 15 17 29 15 1 Fast Attach 242 | . 1 1 1 . 11 2 . 17 8 3 . 1 13 4 6 7 12 1 . 8 2 3 . 1 . 8 11 10 45 41 14 11 Attach 193 | . 2 1 2 2 14 6 1 13 6 3 . 1 6 5 6 2 6 . . 2 1 8 . 1 4 9 . 7 21 20 29 15 Detach 56 | . . . . 1 4 2 . 1 . 1 . . 1 . 1 3 3 . . 1 1 3 . 1 2 3 . . 12 3 9 4 Swap 155 | . 2 1 2 2 8 4 . 32 3 17 1 . 16 6 10 . 5 7 1 2 2 3 1 1 2 1 1 . 3 12 8 2 Drop 281 | . 3 4 6 . 10 12 2 26 12 12 1 4 20 3 3 3 9 1 . 13 4 5 . 2 . 13 5 4 56 41 4 3 Fire 1116 | . 3 7 4 15 97 21 . 68 8 5 . . 16 27 13 19 19 6 . 2 8 15 . 1 1 4 . 1 52 430 197 77 Melee 274 | . . . . . . 6 . 32 3 30 . . 26 5 31 . . . . . 5 31 . 2 7 15 19 36 26 . . . Ram 4 | . . 1 . . . . . . . . . . . . 1 . . . . . . . . . . 1 . . . . . 1 Kick . | . . . . . . . . . . . . . . . . . . . . . . . . . . . . . . . . . Crush 10 | . 1 . . . 4 . . . . . . . . . . . . . . . . . . . . . . . . 4 . 1 Escape Stasis 74 | . . . . . . . . 37 3 . . . . . . . . . . . . . . 11 . . . . . 6 3 14 Rewire . | . . . . . . . . . . . . . . . . . . . . . . . . . . . . . . . . . Trap 6 | . . . . . . . . . . 5 . . 1 . . . . . . . . . . . . . . . . . . . Miscellaneous 2 | . . . . . . . . . . . . . . . . . . . . . . . . . . . . 2 . . . . Route ------- -11/Scrapyard -10/Materials -10/Mines (discovered 3 exits: [*Mat x2] / *Exi) -10/Exiles -9/Mines -8/Materials -7/Factory (discovered 2 exits: Low x2) -7/Waste -7/Factory (discovered 4 exits: *Fac x2 / *Low x2) -6/Factory (discovered 4 exits: *Low x2 / Ext x2) -6/Lower Caves -6/Lower Caves (discovered 2 exits: *Fac / *Zio) -6/Zion (discovered 2 exits: [*Dee] / [*Pro]) -6/Deep Caves -5/Proximity Caves -5/Factory (discovered 2 exits: *Upp x2) -5/Waste -5/Factory (discovered 3 exits: *Fac / *Upp x2) -5/Upper Caves -5/Upper Caves -5/Warlord -4/Proximity Caves -4/Factory -4/Waste -4/Factory (discovered 4 exits: *Res / Upp x2 / *Arm) -4/Armory -3/Research (discovered 3 exits: *Res / *Tes x2) -3/Testing -2/Research (discovered 2 exits: [*Acc] / *Qua) -2/Quarantine -2/Section 7 -1/Access -1/Command History --------- Turn | Location | Event 1 | -11/Scrapyard | Discovered new exit (range 0) 1 | -11/Scrapyard | Entered Materials 146 | -10/Materials | Discovered new exit (range 13) 157 | -10/Materials | Entered Mines 158 | -10/Mines | Met a Derelict bent on vengeance 200 | -10/Mines | Learned location of Storage (-9) 209 | -10/Mines | Found a damaged Exp. Sensor Array with a note attached 211 | -10/Mines | Found Prototype Device 211 | -10/Mines | Identified Exp. Sensor Array 245 | -10/Mines | Discovered new exit (range 8) 278 | -10/Mines | Discovered new exit (range 8) 306 | -10/Mines | Build established: Mutant 357 | -10/Mines | Learned Materials emergency access door positions 372 | -10/Mines | A weapon hastily lodged in a ceiling crevice suddenly fell to the ground 619 | -10/Mines | Deemed a non-threat by the Exiles lab entrance 619 | -10/Mines | Discovered new exit (range 5) 626 | -10/Mines | Entered Exiles 670 | -10/Exiles | Met 8R-AWN 692 | -10/Exiles | Met EX-HEX 770 | -10/Exiles | Met EX-DEC 962 | -10/Exiles | Learned location of Zion (-6) 994 | -10/Exiles | Met EX-BIN 1019 | -10/Exiles | Aligned with FarCom system 1021 | -10/Exiles | Given EX-Vault access code 1062 | -10/Exiles | Opened EX-Vault 1075 | -10/Exiles | Found Supersonic Drone Bay 1078 | -10/Exiles | Found Gui. Plasma Cannon 1084 | -10/Exiles | Found YOLO Cannon 1125 | -10/Exiles | Warned to stay clear of 0b10 Research branches 1138 | -10/Exiles | Exiles lab attacked by MAIN.C 1209 | -10/Exiles | Destroyed EX-HEX 1210 | -10/Exiles | Attacked by the Exiles 1221 | -10/Exiles | Destroyed EX-BIN 1232 | -10/Exiles | Found Prototype Device 1258 | -10/Exiles | Discovered new exit (range 10) 1262 | -10/Exiles | Entered Mines 1263 | -9/Mines | Assembled infested the area 1278 | -9/Mines | Lost 3 parts (2n1w) 1286 | -9/Mines | Identified System Purifier 1458 | -9/Mines | Discovered new exit (range 7) 1463 | -9/Mines | Entered Materials 1463 | -8/Materials | Evolved 4 slots: Propulsion x1, Utility x3 1506 | -8/Materials | Garrison activated, responded to threat 1654 | -8/Materials | Lost 3 parts (2u1w) 1909 | -8/Materials | Build established: Scavenger-Mutant 2256 | -8/Materials | Repaired Gravmag Array? 2270 | -8/Materials | Lost 3 parts (1n1u1w) 2594 | -8/Materials | Discovered new exit (range 3) 2603 | -8/Materials | Entered Factory 2603 | -7/Factory | Evolved 2 slots: Propulsion x1, Utility x1 2706 | -7/Factory | Fabricated Gravmag Array (x1) 2736 | -7/Factory | Lost 3 parts (2n1w) 2853 | -7/Factory | Fabricated Gravmag Array? 2892 | -7/Factory | Identified exit to Lower Caves 2901 | -7/Factory | Local fabrication network quarantined 2908 | -7/Factory | Fabricated Gravmag Array (x1) 3057 | -7/Factory | Sucked down chute 3057 | -7/Factory | Entered Waste 3063 | -7/Waste | Spotted C-40 Crusher 3063 | -7/Waste | Spotted C-40 Crusher 3065 | -7/Waste | Spotted C-40 Crusher 3072 | -7/Waste | EMP discharged 3072 | -7/Waste | System corruption reached 10% 3074 | -7/Waste | Spotted C-40 Crusher 3075 | -7/Waste | Spotted C-40 Crusher 3088 | -7/Waste | Spotted C-40 Crusher 3107 | -7/Waste | Discovered new exit (range 16) 3119 | -7/Waste | Entered Factory 3172 | -7/Factory | Discovered new exit (range 13) 3483 | -7/Factory | Build established: Mutant 3708 | -7/Factory | Identified exit to Factory 3731 | -7/Factory | Garrison activated, responded to threat 3915 | -7/Factory | Discovered exit to Lower Caves (range 16) 4213 | -7/Factory | Repaired Gravmag Array 4829 | -7/Factory | Discovered exit to Lower Caves (range 9) 5172 | -7/Factory | Core integrity fell below 50% 5206 | -7/Factory | Discovered exit to Factory (range 15) 5256 | -7/Factory | Lost 4 parts (1p2u1w) 5438 | -7/Factory | Fabricated Cmb. Gravmag System? 5439 | -7/Factory | Core integrity fell below 20% 5519 | -7/Factory | First assault squad dispatched 5530 | -7/Factory | Fabricated Cmb. Gravmag System (x2) 5586 | -7/Factory | Entered another Factory area 5586 | -6/Factory | Evolved 2 slots: Power x1, Weapon x1 5731 | -6/Factory | Fabricated Cmb. Gravmag System? 5741 | -6/Factory | Fabricated Cmb. Gravmag System? 5884 | -6/Factory | Local fabrication network quarantined 5936 | -6/Factory | First assault squad dispatched 6088 | -6/Factory | Identified exit to Lower Caves 6088 | -6/Factory | Identified exit to Extension 6116 | -6/Factory | Entered Lower Caves 6175 | -6/Lower Caves | Build established: Machinist-Mutant 6270 | -6/Lower Caves | Acquired the password to a Derelict Tinkerer's latest research 6275 | -6/Lower Caves | Found Prototype Special Weapon 6752 | -6/Lower Caves | Learned Factory garrison access intel 6880 | -6/Lower Caves | Caught by Unaware searching for contraband prototypes 6926 | -6/Lower Caves | Caught by Unaware searching for contraband prototypes 7155 | -6/Lower Caves | Spotted B-75 Beast 7214 | -6/Lower Caves | Destroyed B-75 Beast 7238 | -6/Lower Caves | Discovered new exit (range 10) 7252 | -6/Lower Caves | Identified exit to Lower Caves 7262 | -6/Lower Caves | Encountered a Warlord checkpoint 7269 | -6/Lower Caves | Learned Factory stockpile data 7310 | -6/Lower Caves | Entered another Lower Caves area 7323 | -6/Lower Caves | Discovered new exit (range 7) 7369 | -6/Lower Caves | Identified exit to Zion 7400 | -6/Lower Caves | Encountered a Warlord checkpoint 7483 | -6/Lower Caves | Entered Zion 7494 | -6/Zion | Given A8's code to call for help 7516 | -6/Zion | Discovered new exit (range 15) 7615 | -6/Zion | Learned Factory repair station intel 7695 | -6/Zion | Acquired unknown access codes intercepted by a Zionite 7749 | -6/Zion | Given the Hacking Drone Bay 7770 | -6/Zion | Learned location of Quarantine (-2) 7780 | -6/Zion | Found CR-A16's Pointy Stick 8004 | -6/Zion | Opened final containment barrier to the Deep Caves 8164 | -6/Zion | Discovered new exit (range 5) 8167 | -6/Zion | Saw the warning signs outside the Deep Caves entrance 8180 | -6/Zion | Entered Deep Caves 8483 | -6/Deep Caves | Build established: Machinist-Tank 8500 | -6/Deep Caves | Attacked by Z-Imprinter 8534 | -6/Deep Caves | Destroyed Z-Imprinter 8591 | -6/Deep Caves | Lost 10 parts (2p2n3u3w) 8636 | -6/Deep Caves | Found Prototype Device 8636 | -6/Deep Caves | Identified Zio. Metafield Generator 8691 | -6/Deep Caves | Found Prototype Protection 8691 | -6/Deep Caves | Identified Zio. Weapon Casing 8714 | -6/Deep Caves | Found Zio. Weapon Casing 8792 | -6/Deep Caves | Z-Facility disabled 8926 | -6/Deep Caves | Build established: Scavenger-Mutant 9002 | -6/Deep Caves | Discovered new exit (range 6) 9027 | -6/Deep Caves | Entered Proximity Caves 9123 | -5/Proximity Caves | Lost 9 parts (1p2n4u2w) 9125 | -5/Proximity Caves | Destroyed 10 combat bots 9148 | -5/Proximity Caves | Spotted B-75 Beast 9177 | -5/Proximity Caves | Learned 4 Factory zone layouts 9204 | -5/Proximity Caves | Learned Factory trap positions 9213 | -5/Proximity Caves | Identified Molecular Deconstructor 9218 | -5/Proximity Caves | Learned Factory security intel 9340 | -5/Proximity Caves | Discovered new exit (range 6) 9342 | -5/Proximity Caves | Entered Factory 9342 | -5/Factory | Evolved 2 slots: Propulsion x1, Utility x1 9344 | -5/Factory | Loaded intel: 118 trap records 9347 | -5/Factory | Loaded intel: 6 repair station locations 9348 | -5/Factory | Loaded intel: 4 garrison access locations 9397 | -5/Factory | Spotted B-75 Beast 9555 | -5/Factory | Repaired Cmb. Gravmag System? 9725 | -5/Factory | System Shield fried by hacking feedback 9728 | -5/Factory | Discovered new exit (range 16) 9736 | -5/Factory | Identified exit to Upper Caves 9879 | -5/Factory | Core integrity fell below 50% 9886 | -5/Factory | Sucked down chute 9886 | -5/Factory | Entered Waste 9887 | -5/Waste | Met a frightened Derelict 9897 | -5/Waste | Spotted C-40 Crusher 9906 | -5/Waste | Lost 10 parts (1p3n5u1w) 9915 | -5/Waste | Spotted C-40 Crusher 9929 | -5/Waste | Destroyed C-40 Crusher 9937 | -5/Waste | Spotted C-40 Crusher 9967 | -5/Waste | Destroyed C-40 Crusher 9988 | -5/Waste | Spotted C-40 Crusher 10014 | -5/Waste | Destroyed C-40 Crusher 10020 | -5/Waste | Spotted C-40 Crusher 10078 | -5/Waste | Destroyed C-40 Crusher 10098 | -5/Waste | Spotted C-40 Crusher 10101 | -5/Waste | Destroyed C-40 Crusher 10134 | -5/Waste | Build established: Mutant 10152 | -5/Waste | Destroyed C-40 Crusher 10177 | -5/Waste | Warlord forces began an assault 10307 | -5/Waste | Discovered new exit (range 13) 10381 | -5/Waste | Entered Factory 10381 | -5/Factory | Accompanied by 19 allies 10461 | -5/Factory | Fabricated Cmb. Gravmag System? 10673 | -5/Factory | Discovered new exit (range 15) 10681 | -5/Factory | First assault squad dispatched 10803 | -5/Factory | Found Prototype Processor 10803 | -5/Factory | Identified Exp. Signal Interpreter 10834 | -5/Factory | Entered Upper Caves 10844 | -5/Upper Caves | Attracted the attention of an 0b10 checkpoint 10873 | -5/Upper Caves | Core integrity fell below 20% 10933 | -5/Upper Caves | Encountered a Warlord checkpoint 11027 | -5/Upper Caves | Discovered new exit (range 8) 11029 | -5/Upper Caves | Identified exit to Upper Caves 11113 | -5/Upper Caves | Entered another Upper Caves area 11114 | -5/Upper Caves | Identified exit to Warlord 11251 | -5/Upper Caves | Entered Warlord 11429 | -5/Warlord | Visited the Vortex Lab 11430 | -5/Warlord | Found Prototype Energy Gun 11430 | -5/Warlord | Identified Vortex Rail 11442 | -5/Warlord | Warlord's base attacked by MAIN.C 11449 | -5/Warlord | Met Warlord 11460 | -5/Warlord | Found Prototype Reactor 11460 | -5/Warlord | Identified Vortex Chain Reactor 11472 | -5/Warlord | Found Prototype Hackware 11475 | -5/Warlord | Found Prototype Device 11476 | -5/Warlord | Identified Thermal Barrier 11481 | -5/Warlord | Found Prototype Processor 11499 | -5/Warlord | Identified Exp. Target Analyzer 11503 | -5/Warlord | Found Prototype Launcher 11505 | -5/Warlord | Found Prototype Energy Gun 11505 | -5/Warlord | Identified Vortex Shotgun 11508 | -5/Warlord | Found Vortex Shotgun 11607 | -5/Warlord | Opened side exit 11613 | -5/Warlord | Discovered new exit (range 9) 11617 | -5/Warlord | Identified exit to Proximity Caves 11617 | -5/Warlord | Entered Proximity Caves 11753 | -4/Proximity Caves | Identified Vortex Catalyst Activator 11775 | -4/Proximity Caves | Discovered new exit (range 7) 11777 | -4/Proximity Caves | Identified exit to Factory 11778 | -4/Proximity Caves | Entered Factory 11778 | -4/Factory | Evolved 2 slots: Utility x2 11794 | -4/Factory | Identified Ghost Barrier 11927 | -4/Factory | Found Quantum Capacitor 12054 | -4/Factory | First assault squad dispatched 12216 | -4/Factory | Build established: Hacker-Sprinter 12219 | -4/Factory | Fabricated Enh. Nova Cannon? 12264 | -4/Factory | Discovered new exit (range 12) 12315 | -4/Factory | Fabricated Cmb. Gravmag System? 12380 | -4/Factory | Manually triggered Chute Trap 12380 | -4/Factory | Sucked down chute 12380 | -4/Factory | Entered Waste 12381 | -4/Waste | Met a frightened Derelict 12383 | -4/Waste | Spotted C-40 Crusher 12394 | -4/Waste | Discovered new exit (range 16) 12395 | -4/Waste | EMP discharged 12398 | -4/Waste | Spotted C-40 Crusher 12404 | -4/Waste | Identified exit to Factory 12487 | -4/Waste | Entered Factory 12647 | -4/Factory | Discovered new exit (range 10) 12652 | -4/Factory | Identified exit to Upper Caves 12652 | -4/Factory | Identified exit to Armory 12737 | -4/Factory | First assault squad dispatched 12762 | -4/Factory | Spotted B-86 Titan 12766 | -4/Factory | Found Prototype Slashing Weapon 12766 | -4/Factory | Identified Centrium Greatsword 12785 | -4/Factory | Entered Armory 12878 | -4/Armory | Spotted B-86 Titan 12892 | -4/Armory | Lost 3 parts (1n1u1w) 12914 | -4/Armory | Discovered new exit (range 4) 12915 | -4/Armory | Entered Research 12915 | -3/Research | Evolved 2 slots: Power x1, Utility x1 12979 | -3/Research | Spotted B-86 Titan 13092 | -3/Research | Identified exit to Testing 13096 | -3/Research | Fabricated Cmb. Gravmag System? 13137 | -3/Research | Found Adv. Powered Armor 13185 | -3/Research | Fabricated Cmb. Gravmag System? 13187 | -3/Research | Discovered new exit (range 12) 13285 | -3/Research | Entered Testing 13287 | -3/Testing | Lost 6 parts (1p3n1u1w) 13323 | -3/Testing | Protovariant out of control (PD-BLVMXN83YQ) 13417 | -3/Testing | Fabricated Cmb. Gravmag System? 13538 | -3/Testing | Discovered new exit (range 11) 13562 | -3/Testing | Build established: Hacker-Mutant 13722 | -3/Testing | Spotted Striker 13725 | -3/Testing | Found Enh. Force Lance 13733 | -3/Testing | Spotted Striker 13781 | -3/Testing | Entered Research 13781 | -2/Research | Warlord forces began assault on 0b10 13781 | -2/Research | Evolved 2 slots: Utility x2 13844 | -2/Research | Adv. Hacking Suite fried by hacking feedback 13848 | -2/Research | Spotted B-90 Cyclops 13891 | -2/Research | Research machine network offline 14035 | -2/Research | System corruption reached 10% 14082 | -2/Research | Found Gamma Bomb Array 14084 | -2/Research | Found Gamma Bomb Array 14276 | -2/Research | Found Adv. Force Booster 14402 | -2/Research | Borebot progress halted 14436 | -2/Research | Spotted B-90 Cyclops 14439 | -2/Research | Spotted Striker 14444 | -2/Research | Borebot progress halted 14454 | -2/Research | Discovered new exit (range 16) 14454 | -2/Research | Discovered new exit (range 15) 14462 | -2/Research | Identified exit to Quarantine 14465 | -2/Research | Entered Quarantine 14471 | -2/Quarantine | Lost 3 parts (2n1u) 14508 | -2/Quarantine | Found Alien Impact Weapon 14530 | -2/Quarantine | Found Alien Artifact 14530 | -2/Quarantine | Identified Phase Redirector 14588 | -2/Quarantine | Met incapacitated Sigix Warrior 14588 | -2/Quarantine | Lockdown squad dispatched 14606 | -2/Quarantine | Acquired the access code to the Sigix quarantine chamber 14609 | -2/Quarantine | Unlocked Sigix quarantine chamber 14619 | -2/Quarantine | Build established: Scavenger-Mutant 14650 | -2/Quarantine | Spotted Lightning 14651 | -2/Quarantine | Identified Core Stripper 14652 | -2/Quarantine | Spotted Lightning 14652 | -2/Quarantine | Spotted Lightning 14653 | -2/Quarantine | Destroyed Lightning 14659 | -2/Quarantine | Destroyed Lightning 14659 | -2/Quarantine | Destroyed Lightning 14669 | -2/Quarantine | Found Prototype Energy Cannon 14669 | -2/Quarantine | Identified EMDS 14677 | -2/Quarantine | Found Prototype Processor 14677 | -2/Quarantine | Identified Exp. Targeting Computer 14684 | -2/Quarantine | Found EMDS 14686 | -2/Quarantine | Found Prototype Device 14686 | -2/Quarantine | Identified Exp. Phase Shifter 14753 | -2/Quarantine | Found Alien Artifact 14753 | -2/Quarantine | Identified Subatomic Replicator 15031 | -2/Quarantine | Cryocooling Duct disabled 15046 | -2/Quarantine | Ambient heat levels rising (+20) 15046 | -2/Quarantine | Non-combat units ordered to evacuate 15174 | -2/Quarantine | Found Alien Artifact 15213 | -2/Quarantine | Identified Dimensional Node Initializer 15352 | -2/Quarantine | Discovered new exit (range 15) 15464 | -2/Quarantine | Found Alien Artifact 15464 | -2/Quarantine | Identified Core Reset Matrix 15464 | -2/Quarantine | Used Core Reset Matrix 15468 | -2/Quarantine | Sensed 11 artifacts in vicinity 15686 | -2/Quarantine | Found Core Cannon 15817 | -2/Quarantine | Spotted Fortress 15842 | -2/Quarantine | Destroyed Fortress 15849 | -2/Quarantine | Found Prototype Reactor 15849 | -2/Quarantine | Identified Vortex Chain Reactor 15853 | -2/Quarantine | Found Prototype Protection 15853 | -2/Quarantine | Identified Centrium Heavy Armor Plating 15861 | -2/Quarantine | Found Prototype Device 15861 | -2/Quarantine | Identified EM Dispersion Field 15868 | -2/Quarantine | Found Unknown Device 15868 | -2/Quarantine | Identified Antimissile System 15872 | -2/Quarantine | Found Prototype Device 15872 | -2/Quarantine | Identified Thermal Barrier 15907 | -2/Quarantine | Found Prototype Device 15907 | -2/Quarantine | Identified Exp. Force Field 15917 | -2/Quarantine | Found Unknown Protection 16025 | -2/Quarantine | Discovered new exit (range 5) 16031 | -2/Quarantine | Entered Section 7 16032 | -2/Section 7 | Sensed 24 artifacts in vicinity 16062 | -2/Section 7 | Spotted S7 Guard 16073 | -2/Section 7 | Used Subatomic Replicator to replicate Integrated Singularity Reactor 16074 | -2/Section 7 | Found Integrated Singularity Reactor 16074 | -2/Section 7 | Installed Integrated Singularity Reactor, increased core energy generation (+20) 16077 | -2/Section 7 | Installed Integrated Singularity Reactor, increased core energy generation (+20) 16117 | -2/Section 7 | Build established: Generator-Mutant 16124 | -2/Section 7 | Destroyed S7 Guard 16148 | -2/Section 7 | Found Prototype Protection 16215 | -2/Section 7 | Found Integrated Reactor 16215 | -2/Section 7 | Installed Integrated Reactor, increased core energy generation (+10) 16264 | -2/Section 7 | Identified Hvy. Regenerative Plating 16269 | -2/Section 7 | Found Core Reset Matrix 16429 | -2/Section 7 | Discovered new exit (range 15) 16437 | -2/Section 7 | Spotted S7 Guard 16448 | -2/Section 7 | Found Core Regenerator 16449 | -2/Section 7 | Used Core Regenerator, restored core integrity (+362) 16459 | -2/Section 7 | Destroyed S7 Guard 16655 | -2/Section 7 | Spotted S7 Guard 16661 | -2/Section 7 | Found Integrated Heat Negator 16661 | -2/Section 7 | Installed Integrated Heat Negator, increased core heat dissipation (+40) 16699 | -2/Section 7 | Destroyed S7 Guard 16712 | -2/Section 7 | Identified Hvy. Insulated Plating 16717 | -2/Section 7 | Found Hvy. Regenerative Plating 16796 | -2/Section 7 | Spotted S7 Guard 16806 | -2/Section 7 | Destroyed S7 Guard 16847 | -2/Section 7 | Found Core Membrane 16848 | -2/Section 7 | Installed Core Membrane, gained immunity to corruption 17069 | -2/Section 7 | First assault squad dispatched 17122 | -2/Section 7 | Spotted Alpha 7 17130 | -2/Section 7 | Spotted Alpha 7 17149 | -2/Section 7 | Destroyed Alpha 7 17163 | -2/Section 7 | Destroyed Alpha 7 17202 | -2/Section 7 | Found Integrated Reactor 17202 | -2/Section 7 | Installed Integrated Reactor, increased core energy generation (+10) 17270 | -2/Section 7 | Found Prototype Launcher 17270 | -2/Section 7 | Identified Tesla Bomb Launcher 17279 | -2/Section 7 | Spotted B-99 Colossus 17302 | -2/Section 7 | Destroyed B-99 Colossus 17404 | -2/Section 7 | Found Core Reset Matrix 17535 | -2/Section 7 | Found LRC Armor 17535 | -2/Section 7 | Installed LRC Armor, increased core integrity (+250) 17545 | -2/Section 7 | Found LRC Storage 17545 | -2/Section 7 | Installed LRC Storage, increased inventory capacity (+2) 17548 | -2/Section 7 | Found LRC Insulator 17548 | -2/Section 7 | Installed LRC Insulator, gained EM resistance (25) 17752 | -2/Section 7 | Sensed 13 artifacts in vicinity 17788 | -2/Section 7 | Spotted Executioner 17789 | -2/Section 7 | Spotted Executioner 17794 | -2/Section 7 | Destroyed Executioner 17796 | -2/Section 7 | Destroyed Executioner 17976 | -2/Section 7 | Spotted Striker 17977 | -2/Section 7 | Spotted Striker 17983 | -2/Section 7 | Destroyed Striker 17983 | -2/Section 7 | Destroyed Striker 18260 | -2/Section 7 | Found Sigix Quantum Sheargun 18267 | -2/Section 7 | Found Sigix Quantum Sheargun 18273 | -2/Section 7 | Found Sigix Quantum Sheargun 18500 | -2/Section 7 | Destroyed 9 combat bots 18525 | -2/Section 7 | Activated Sigix Exoskeleton 18525 | -2/Section 7 | Received instructions from Sigix Warrior 18603 | -2/Section 7 | Spotted Executioner 18606 | -2/Section 7 | Allies destroyed Executioner 18607 | -2/Section 7 | Spotted Striker 18610 | -2/Section 7 | Destroyed Striker 18610 | -2/Section 7 | Spotted Executioner 18632 | -2/Section 7 | Destroyed Executioner 18653 | -2/Section 7 | Destroyed Executioner 18674 | -2/Section 7 | Destroyed 15 combat bots 18680 | -2/Section 7 | Spotted Investigator 18680 | -2/Section 7 | Scanned by Researcher 18681 | -2/Section 7 | Intercept squad dispatched 18683 | -2/Section 7 | Allies destroyed Investigator 18688 | -2/Section 7 | Spotted Tracker 18689 | -2/Section 7 | Spotted Tracker 18694 | -2/Section 7 | Destroyed Tracker 18696 | -2/Section 7 | Destroyed Tracker 18718 | -2/Section 7 | Destroyed 19 combat bots 18725 | -2/Section 7 | Found Prototype Ballistic Gun 18727 | -2/Section 7 | Spotted Combat Programmer 18733 | -2/Section 7 | Spotted Combat Programmer 18737 | -2/Section 7 | Allies destroyed Combat Programmer 18745 | -2/Section 7 | Allies destroyed Combat Programmer 18755 | -2/Section 7 | Found Prototype Device 18756 | -2/Section 7 | Identified Exp. Phase Shifter 18757 | -2/Section 7 | Sterilization system engaged 18757 | -2/Section 7 | Non-combat units ordered to evacuate 18764 | -2/Section 7 | Destroyed 7 combat bots 18857 | -2/Section 7 | Combat units ordered to evacuate 18884 | -2/Section 7 | Found Integrated Dissipator 18884 | -2/Section 7 | Installed Integrated Dissipator, increased core heat dissipation (+20) 18984 | -2/Section 7 | Build established: Alien-Mutant 19009 | -2/Section 7 | Found Integrated Dissipator 19009 | -2/Section 7 | Installed Integrated Dissipator, increased core heat dissipation (+20) 19057 | -2/Section 7 | Ambient heat levels rising (+10) 19207 | -2/Section 7 | Ambient heat levels rising (+10) 19357 | -2/Section 7 | Ambient heat levels rising (+10) 19507 | -2/Section 7 | Ambient heat levels rising (+10) 19646 | -2/Section 7 | Discovered new exit (range 16) 19657 | -2/Section 7 | Ambient heat levels rising (+10) 19670 | -2/Section 7 | Entered Access 19670 | -1/Access | Accompanied by 1 ally (Sigix Warrior) 19670 | -1/Access | Evolved 2 slots: Propulsion x1, Utility x1 19689 | -1/Access | Garrison activated, responded to threat 19733 | -1/Access | Lost 3 parts (1u2w) 19764 | -1/Access | Destroyed Striker 19800 | -1/Access | Garrison activated, responded to threat 19830 | -1/Access | Destroyed 7 combat bots 19880 | -1/Access | Spotted Executioner 19880 | -1/Access | Spotted Executioner 19897 | -1/Access | Destroyed Executioner 19899 | -1/Access | Destroyed Executioner 19905 | -1/Access | Destroyed Executioner 19930 | -1/Access | Destroyed 21 combat bots 19958 | -1/Access | Destroyed Investigator 19999 | -1/Access | Destroyed 26 combat bots 20020 | -1/Access | Spotted Striker 20020 | -1/Access | Spotted Striker 20023 | -1/Access | Destroyed Striker 20041 | -1/Access | Allies destroyed Striker 20079 | -1/Access | Destroyed 23 combat bots 20129 | -1/Access | Destroyed 8 combat bots 20185 | -1/Access | Sterilization system engaged 20200 | -1/Access | Spotted Striker 20200 | -1/Access | Spotted Executioner 20205 | -1/Access | Spotted Executioner 20206 | -1/Access | Spotted Striker 20208 | -1/Access | Destroyed Executioner 20208 | -1/Access | Spotted Investigator 20209 | -1/Access | Destroyed Striker 20218 | -1/Access | Destroyed Investigator 20219 | -1/Access | Spotted Striker 20219 | -1/Access | Spotted Executioner 20223 | -1/Access | Spotted Executioner 20225 | -1/Access | Spotted Executioner 20232 | -1/Access | Destroyed Executioner 20233 | -1/Access | Allies destroyed Striker 20234 | -1/Access | Identified Multirail 20236 | -1/Access | Destroyed Striker 20242 | -1/Access | Allies destroyed Executioner 20242 | -1/Access | Destroyed Executioner 20254 | -1/Access | Destroyed Executioner 20279 | -1/Access | Spotted Executioner 20279 | -1/Access | Spotted Striker 20279 | -1/Access | Spotted Executioner 20282 | -1/Access | Lost 13 parts (2p2n5u4w) 20286 | -1/Access | Destroyed Executioner 20297 | -1/Access | Allies destroyed Executioner 20307 | -1/Access | Destroyed 35 combat bots 20309 | -1/Access | Destroyed Striker 20390 | -1/Access | Found Prototype Processor 20391 | -1/Access | Identified Exp. Core Analyzer 20398 | -1/Access | Found Prototype Device 20399 | -1/Access | Identified Adv. Kinecellerator 20485 | -1/Access | Ambient heat levels rising (+10) 20582 | -1/Access | Spotted B-99 Colossus 20635 | -1/Access | Ambient heat levels rising (+10) 20639 | -1/Access | Destroyed B-99 Colossus 20709 | -1/Access | Found Multirail 20717 | -1/Access | Found Unknown Protection 20717 | -1/Access | Identified Hvy. Insulated Plating 20755 | -1/Access | Lost 5 parts (2n3u) 20774 | -1/Access | Spotted B-99 Colossus 20785 | -1/Access | Ambient heat levels rising (+10) 20912 | -1/Access | Discovered new exit (range 10) 20935 | -1/Access | Ambient heat levels rising (+10) 21085 | -1/Access | Ambient heat levels rising (+10) 21195 | -1/Access | Build established: Scavenger-Mutant 21235 | -1/Access | Ambient heat levels rising (+10) 21385 | -1/Access | Ambient heat levels rising (+10) 21535 | -1/Access | Ambient heat levels rising (+10) 21618 | -1/Access | Entered Command 21719 | -1/Command | High security lockdown imminent 21799 | -1/Command | High security lockdown engaged 21910 | -1/Command | Spotted Executioner 21910 | -1/Command | Spotted Striker 21927 | -1/Command | Destroyed Executioner 21931 | -1/Command | Destroyed Striker 21978 | -1/Command | Lost 7 parts (1p2n3u1w) 21986 | -1/Command | Destroyed 14 combat bots 22013 | -1/Command | Spotted Executioner 22013 | -1/Command | Spotted Executioner 22037 | -1/Command | Spotted Investigator 22059 | -1/Command | Destroyed Executioner 22068 | -1/Command | Destroyed Executioner 22080 | -1/Command | Destroyed Investigator 22102 | -1/Command | Crushed by falling debris 22103 | -1/Command | Core integrity fell below 50% 22107 | -1/Command | Destroyed 13 combat bots 22166 | -1/Command | Emitted hypermatrix ping 22170 | -1/Command | Core integrity fell below 20% 22171 | -1/Command | Assembled emerged from beneath the floor 22188 | -1/Command | Destroyed by B-74 Champion with Powered Hammer Last Messages --------------- 22178_ as-40014 destroyed. 22179_ as-05252 system corrupted by crushing effect. 22179_ Quantum Shear penetrates B-74 Champion. 22180_ as-05252 destroyed. 22181_ Quantum Shear penetrates B-74 Champion. 22181_ Destroyed Wheel. 22182_ M-36 Artificer fits Unknown Energy Gun on G-73 Enforcer. 22182_ as-09457 destroyed. 22182_ Quantum Shear penetrates B-74 Champion. 22183_ as-26780 destroyed. 22183_ Sigix Quantum Sheargun destroyed. 22183_ Core Membrane filtered system corruption (1). 22183_ M-36 Artificer fits Unknown Hover Unit on G-73 Enforcer. 22185_ Hvy. Regenerative Plating destroyed. 22185_ K-01 Serf collects debris. 22186_ M-36 Artificer fits Unknown Hover Unit on G-73 Enforcer. 22187_ Com. Matter Pod destroyed. 22187_ Core Membrane filtered system corruption (3). 22187_ Wiping memory... 22187_ CORE RESET Map ----- +----------------------------------------------------+ | ?????????????????????????????????????????????????? | | ?????????????????????????????????????????????????? | | ?????????????????????????????????????????????????? | | ?????????????????????????????????????????????????? | | ?????????????????????????????????????????????????? | | ?????????????????????????????????????????????????? | | ?????????????????????????????????????????????????? | | ?????????????????????????????????????????????????? | | ?????????????????????????????????????????????????? | | ?????????????????????????????????????????????????? | | ?????????????????????????????????????????????????? | | ?????????????????????????????????????????????????? | | ?????????????????????????????????????????????????? | | ?????????????????????????????????????????????????? | | ?????????????????????????????????????????????????? | | ?????????????????????????????????????????????????? | | ?????????????????????????????????????????????????? | | ????????????? ???????????????????????????????????? | | ???????????? ??????????????????????????????????? | | ????????????? ?###????????????????????????????? | | ??????????????? %+!k=???????????????????????????? | | ????????????????? m%!%#??????????????????????????? | | ??????????? ?????#!%%!##????????????????????????? | | ?????????? %#/[g%!g##########??????????????? | | ????????????? %=%m%glbi[%]=% #??????????????? | | ???????????????????#i*g!b@a%%! #??????????????? | | ???????????????????#[%!%##########???????????????? | | ???????????????????##%???????????????????????????? | | ?????????????????????????????????????????????????? | | ?????????????????????????????????????????????????? | | ?????????????????????????????????????????????????? | | ?????????????????????????????????????????????????? | | ?????????????????????????????????????????????????? | | ?????????????????????????????????????????????????? | | ?????????????????????????????????????????????????? | | ?????????????????????????????????????????????????? | | ?????????????????????????????????????????????????? | | ?????????????????????????????????????????????????? | | ?????????????????????????????????????????????????? | | ?????????????????????????????????????????????????? | | ?????????????????????????????????????????????????? | | ?????????????????????????????????????????????????? | | ?????????????????????????????????????????????????? | | ?????????????????????????????????????????????????? | | ?????????????????????????????????????????????????? | | ?????????????????????????????????????????????????? | | ?????????????????????????????????????????????????? | | ?????????????????????????????????????????????????? | | ?????????????????????????????????????????????????? | | ?????????????????????????????????????????????????? | +----------------------------------------------------+ Best States ------------- Heat Dissipation 253 Coolant Potential 100 Energy Generation 137 Energy Capacity 1125 Matter Stores 300 Matter Capacity 300 Sight Range 23 Robot Scan Range 30 Terrain Scan Range 20 Terrain Scan Density 10 ECM Strength 3 Power Amplification 30 Armor Coverage 2850 Resistance: TH 50 Resistance: EM 75 Core Shielding 40 Propulsion Shielding 66 Utility Shielding 66 Weapon Shielding 100 Point Defense Rating 240 Melee Speed Boost 20 Evasion (%) 72 Targeting Accuracy 12 Melee Accuracy 16 Target Analysis 12 Core Analysis 15 Armor Integrity Analysis 66 Recoil Reduction 6 Matter Filtering 50 Kinecelleration 50 Overload Amplification 100 Salvage Targeting 4 Offensive Hacking 26 Defensive Hacking 46 Item Schematics ----------------- None Robot Schematics ------------------ None Fabricated ------------ Gravmag Array | x1 | -7/Factory Gravmag Array | x1 | -7/Factory Gravmag Array | x1 | -7/Factory Cmb. Gravmag System | x2 | -7/Factory Cmb. Gravmag System | x2 | -7/Factory Cmb. Gravmag System | x2 | -6/Factory Cmb. Gravmag System | x2 | -6/Factory Cmb. Gravmag System | x2 | -5/Factory Enh. Nova Cannon | x1 | -4/Factory | Preloaded Cmb. Gravmag System | x2 | -4/Factory Cmb. Gravmag System | x2 | -3/Research Cmb. Gravmag System | x2 | -3/Research Cmb. Gravmag System | x2 | -3/Testing Alien Tech Used ----------------- Phase Redirector Core Stripper Subatomic Replicator Core Reset Matrix Integrated Singularity Reactor Integrated Reactor Core Regenerator Integrated Heat Negator Core Membrane LRC Armor LRC Storage LRC Insulator Integrated Dissipator Sigix Quantum Sheargun Core Cannon Achievements -------------- Artifact Hunter Production Line Wheee! Challenges ------------ None Game ------ Seed SubatomicDroneInsulator Manual? 0 Play Time 05:03:05 Cumulative 272.2 hours Start 2021.01.22 @ 13:12:23 End 2021.01.22 @ 19:08:31 Sessions 1 Manual Loads 0 Difficulty Rogue Special Mode None Game No. 227 Rogue 220 Adventurer 0 Explorer 7 Win Type - Total 7 Types 2/0/5/0/0/0/0/0/0 Lore% 74 Gallery% 91 Achievement% 71 Wizard Run 0 Options --------- ASCII 0 Keyboard 0 Movement Numpad Keybinds 0 Fullscreen 1 Font 18/X11 Map View 76x50 Tactical HUD 1 Map Filters NONE Filters NONE Steam 1 RUN: 63a8b52d-056b-4038-adf8-751558e23b1f